{"text_format":"1","workbook":"xlsx","n_sheets":46,"sheets":["Indice","BG","ER","EVPN","EFE","Nota1","Nota 2","Nota 3","Nota 4","Nota 5","Nota 6","Nota 7","Nota 8","Nota 9","Nota 10","Nota 11","Nota 12","Nota 13","Nota 14","Nota 15","Nota 16","Nota 17","Nota 18","Nota 19","Nota 20"," Nota 21","Nota 22","Nota 23","Nota 24","Nota 25","Nota 26","Nota 27","Nota 28","Nota 29","Nota 30","Nota 31","Nota 32","Nota 33","Nota 34","Nota 35","Nota 36","Nota 37","Nota 38","Nota 39","Nota 40","Base de Monedas"],"not_rendered":{"charts":0,"images":1,"macros":1,"external_links":3,"defined_names":6,"comments":0,"pivot_tables":0},"unopened":[],"bounds":{"document_bytes":16777216,"sheet_cells":100000,"rows_first":2000,"rows_last":500,"rows_between":2000,"halvings":0,"cell_chars":16384,"cell_head_chars":4096},"cells_cut":0,"cells_raw":0,"read":"whole","date_system":"1900"}

{"sheet":"Indice","index":0,"n_rows":69,"n_cols":20,"rows_kept":69,"cut":false,"hidden":false,"merged":[[64,1,64,3],[66,2,66,3],[67,2,67,3],[68,2,68,3]]}
[null,"Sociedad:","FRIGORIFICO CONCEPCION S.A."]
[null,null,null,null,null,null,null,null,null,null,null,null,null,null,null,null,null,null,1,"Enero"]
[null,null,null,null,null,null,null,null,null,null,null,null,null,null,null,null,null,null,2,"Febrero"]
[null,null,null,null,null,null,null,null,null,null,null,null,null,null,null,null,null,null,3,"Marzo"]
[null,null,null,null,null,null,null,null,null,null,null,null,null,null,null,null,null,null,4,"Abril"]
["Fecha Presentación:","2020-06-30",null,null,null,null,null,null,null,null,null,null,null,null,null,null,null,null,5,"Mayo"]
[null,null,null,null,null,null,null,null,null,null,null,null,null,null,null,null,null,null,7,"Julio"]
[null,null,"INDICE","REF.",null,null,null,null,null,null,null,null,null,null,null,null,null,null,8,"Agosto"]
[null,"Informacion General",null,null,null,null,null,null,null,null,null,null,null,null,null,null,null,null,9,"Septiembre"]
[null,null,"Descripción de la naturaleza y del negocio de la Sociedad","Nota 1",null,null,null,null,null,null,null,null,null,null,null,null,null,null,10,"Octubre"]
[null,null,"Resumen de las principales políticas contables","Nota 2",null,null,null,null,null,null,null,null,null,null,null,null,null,null,11,"Noviembre"]
[null,"Balance General",null,"BG",null,null,null,null,null,null,null,null,null,null,null,null,null,null,12,"Diciembre"]
[null,null,"Efectivo y equivalente de efectivo","Nota 3"]
[null,null,"Inversiones temporales","Nota 4"]
[null,null,"Cuentas por cobrar comerciales","Nota 5"]
[null,null,"Otros créditos","Nota 6"]
[null,null,"Cuentas por cobrar comerciales","Nota 5"]
[null,null,"Inventarios","Nota 7"]
[null,null,"Inversión en asociadas","Nota 8"]
[null,null,"Propiedades, planta y equipo","Nota 9"]
[null,null,"Activos disponibles para la venta","Nota 10"]
[null,null,"Activos intangibles","Nota 11"]
[null,null,"Propiedades de inversión","Nota 12"]
[null,null,"Cuentas por pagar comerciales","Nota 13"]
[null,null,"Préstamos a corto plazo","Nota 14"]
[null,null,"Porción corriente de la deuda a largo plazo","Nota 15"]
[null,null,"Remuneraciones y cargas sociales a pagar","Nota 16"]
[null,null,"Impuestos a pagar","Nota 17"]
[null,null,"Provisiones","Nota 18"]
[null,null,"Otros pasivos corrientes","Nota 19"]
[null,null,"Prestamos a largo plazo","Nota 14"]
[null,null,"Otros pasivos no corrientes","Nota 19"]
[null,null,"Capital integrado","Nota 20"]
[null,null,"Reserva de revalúo","Nota 21"]
[null,null,"Reserva legal","Nota 21"]
[null,null,"Reservas estatutarias","Nota 21"]
[null,null,"Reservas facultativas","Nota 21"]
[null,null,"Diferencia transitoria por conversión","Nota 22"]
[null,null,"Resultados acumulados","Nota 23"]
[null,null,"Interés minoritario","Nota 24"]
[null,"Estado de Resultados ",null,"ER"]
[null,null,"Ventas","Nota 25"]
[null,null,"Costo de ventas","Nota 26"]
[null,null,"Gastos de ventas","Nota 27"]
[null,null,"Gastos administrativos","Nota 27"]
[null,null,"Otros ingresos y gastos operativos","Nota 28"]
[null,null,"Ingresos financieros - neto","Nota 29"]
[null,null,"Gastos financieros - neto","Nota 29"]
[null,null,"Resultado de inversiones en asociadas","Nota 30"]
[null,null,"Resultado participación minoritaria","Nota 31"]
[null,null,"Impuesto a la renta","Nota 32"]
[null,null,"Resultado extraordinario neto de impuesto a la renta","Nota 33"]
[null,null,"Resultado sobre actividades discontinuadas neto de impuesto a la renta","Nota 34"]
[null,null,"Utilidad/(Pérdida) neta del año","Nota 35"]
[null,null,"Utilidad neta por acción ordinaria","Nota 35"]
[null,"Estado de Evolución del Patrimonio Neto",null,"EVPN"]
[null,"Estado de Flujos de Efectivo",null,"EFE"]
[null,"Otras Notas de los Estados Financieros"]
[null,null,"Activos gravados","Nota 36"]
[null,null,"Contingencias y compromisos","Nota 37"]
[null,null,"Impuesto diferido","Nota 38"]
[null,null,"Hechos posteriores","Nota 39"]
[null,null,"Saldos y transacciones con partes relacionadas","Nota 40"]
[]
[null,"FIRMANTES "]
[]
[null,"Presidente","Jair Antonio de Lima"]
[null,"Vicepresidente","Pedro Cassildo Pascutti"]
[null,"Gerente de Contabilidad","Lic. Delia S. Brítez E. "]

{"sheet":"BG","index":1,"n_rows":57,"n_cols":7,"rows_kept":57,"cut":false,"hidden":false,"merged":[[62,5,62,6],[9,2,9,3],[10,2,10,3],[11,2,11,3],[12,2,12,3],[13,2,13,3],[22,2,22,3],[27,2,27,3],[29,2,29,3],[30,2,30,3],[31,2,31,3],[32,2,32,3],[52,2,52,3],[45,2,45,3],[46,2,46,3],[48,2,48,3],[2,0,2,6],[4,0,4,6],[61,5,61,6],[49,2,49,3],[51,2,51,3],[23,2,23,3],[20,2,20,3],[21,2,21,3],[16,2,16,3],[18,2,18,3],[19,2,19,3],[28,2,28,3],[3,0,3,6],[67,5,67,6],[68,1,68,3],[7,1,7,3],[25,1,25,3],[41,1,41,3],[40,1,40,3],[53,1,53,3],[66,5,66,6],[24,1,24,3],[54,1,54,3],[33,2,33,3],[36,2,36,3],[37,2,37,3],[42,2,42,3],[44,2,44,3],[43,2,43,3]]}
[null,null,null,{"$f":"Indice!C1","v":"FRIGORIFICO CONCEPCION S.A."},"Indice"]
[]
["BALANCE GENERAL"]
["Al 30 de junio de 2020"]
["(Cifras expresadas en guaraníes)"]
[]
[null,null,null,null,"Nota",{"$f":"+Indice!B6","v":"2020-06-30"},"2019-12-31"]
[null,"ACTIVOS"]
[null,"Activos Corrientes"]
[null,null,"Efectivo y equivalente de efectivo",null,3,{"$f":"'Nota 3'!C16","v":66667756651},{"$f":"'Nota 3'!D16","v":10161228621}]
[null,null,"Inversiones temporales",null,4,{"$f":"'Nota 4'!B19","v":0},{"$f":"'Nota 4'!C19","v":0}]
[null,null,"Cuentas por cobrar comerciales",null,5,{"$f":"'Nota 5'!C14","v":595833879752},{"$f":"'Nota 5'!D14","v":438936295945}]
[null,null,"Otros créditos",null,6,{"$f":"'Nota 6'!B19","v":111536946821},{"$f":"'Nota 6'!C19","v":85808260245}]
[null,null,"Inventarios",null,7,{"$f":"'Nota 7'!B15","v":418467076205},{"$f":"'Nota 7'!C15","v":387659100060}]
[null,null,"Total activos corrientes",null,null,{"$f":"SUM(F10:F14)","v":1192505659429},{"$f":"SUM(G10:G14)","v":922564884871}]
[null,"Activos no Corrientes"]
[null,null,"Otros créditos ",null,6,{"$f":"'Nota 6'!F19","v":212145734771},{"$f":"'Nota 6'!G19","v":126103451182}]
[null,null,"Cuentas por cobrar comerciales",null,5,{"$f":"'Nota 5'!C23","v":1901294139},{"$f":"'Nota 5'!D23","v":1901294139}]
[null,null,"Inversión en asociadas",null,8,{"$f":"'Nota 8'!B8","v":30056300},{"$f":"'Nota 8'!C8","v":30056300}]
[null,null,"Propiedades, planta y equipo/Bienes de uso, neto",null,9,{"$f":"'Nota 9'!L31","v":309960422375.99945},{"$f":"'Nota 9'!M31","v":314484085187}]
[null,null,"Activos disponibles para la venta",null,10,{"$f":"'Nota 10'!B20","v":0},{"$f":"'Nota 10'!C20","v":0}]
[null,null,"Activos intangibles",null,11,{"$f":"'Nota 11'!B12","v":0},{"$f":"'Nota 11'!C12","v":0}]
[null,null,"Propiedades de Inversión",null,12,{"$f":"'Nota 12'!B10","v":46929360000},{"$f":"'Nota 12'!C10","v":46929360000}]
[null,null,"Total activos no corrientes",null,null,{"$f":"SUM(F17:F23)","v":570966867585.99951},{"$f":"SUM(G17:G23)","v":489448246808}]
[null,"Total Activos",null,null,null,{"$f":"+F15+F24","v":1763472527014.9995},{"$f":"+G15+G24","v":1412013131679}]
[null,"PASIVOS Y PATRIMONIO NETO"]
[null,"Pasivos corrientes",null,null,null,-1]
[null,null,"Cuentas por pagar comerciales",null,13,{"$f":"'Nota 13'!D13","v":93336271366},{"$f":"'Nota 13'!E13","v":71476210719}]
[null,null,"Préstamos a corto plazo ",null,14,{"$f":"'Nota 14'!E50","v":59801205291.200005},{"$f":"'Nota 14'!K50","v":253941259509.38281}]
[null,null,"Porción corriente de la deuda a largo plazo",null,15,{"$f":"'Nota 15'!B15","v":78442992418},{"$f":"'Nota 15'!C15","v":212061353081.59619}]
[null,null,"Remuneraciones y cargas sociales a pagar",null,16,{"$f":"'Nota 16'!B12","v":3338431778},{"$f":"'Nota 16'!C12","v":1002922187}]
[null,null,"Impuestos a pagar",null,17,{"$f":"'Nota 17'!B12","v":10908671085},{"$f":"'Nota 17'!C12","v":4165070386}]
[null,null,"Provisiones",null,18,{"$f":"'Nota 18'!B13","v":0},{"$f":"'Nota 18'!C13","v":0}]
[null,null,"Otros pasivos corrientes",null,19,{"$f":"'Nota 19'!B14","v":24880474225},{"$f":"'Nota 19'!C14","v":9384946631.2700005}]
[null,null,"Total Pasivos Corrientes",null,null,{"$f":"+F28+F29+F30+F31+F32+F34","v":270708046163.20001},{"$f":"+G28+G29+G30+G31+G32+G34","v":552031762514.24902}]
[null,"Pasivos no corrientes"]
[null,null,"Préstamos a largo plazo ",null,14,{"$f":"'Nota 14'!E91","v":752399518628},{"$f":"'Nota 14'!K91","v":217794446703.41165}]
[null,null,"Otros pasivos  no corrientes",null,19,{"$f":"'Nota 19'!F14","v":10003822688},{"$f":"'Nota 19'!G14","v":10003822688}]
[null,null,"Total pasivos no corrientes",null,null,{"$f":"SUM(F37:F38)","v":762403341316},{"$f":"SUM(G37:G38)","v":227798269391.41165}]
[]
[null,"Total Pasivos",null,null,null,{"$f":"+F35+F39","v":1033111387479.2},{"$f":"+G35+G39","v":779830031905.66064}]
[null,"Patrimonio Neto"]
[null,null,"Capital integrado",null,20,{"$f":"'Nota 20'!B11","v":386400000000},{"$f":"'Nota 20'!C11","v":386400000000}]
[null,null,"Reserva de revalúo",null,21,{"$f":"' Nota 21'!B8","v":61543828060},{"$f":"' Nota 21'!C8","v":61543828060}]
[null,null,"Reserva legal",null,21,{"$f":"' Nota 21'!B13","v":24610112891},{"$f":"' Nota 21'!C13","v":24610112891}]
[null,null,"Reservas estatutarias",null,21,{"$f":"' Nota 21'!B17","v":0},{"$f":"' Nota 21'!C17","v":0}]
[null,null,"Reservas facultatitvas",null,21,{"$f":"' Nota 21'!B21","v":0},{"$f":"' Nota 21'!C21","v":0}]
[null,null,"Reservas especiales ",null,21,{"$f":"' Nota 21'!B29","v":90034404188},{"$f":"' Nota 21'!C29","v":90034404188}]
[null,null,"Diferencia transitoria por conversión",null,22,{"$f":"'Nota 22'!B9","v":"-"},{"$f":"'Nota 22'!C9","v":"-"}]
[null,null,"Resultados acumulados",null,23,{"$f":"'Nota 23'!B8","v":69594754634},{"$f":"'Nota 23'!C8","v":48458148}]
[null,null,"Resultado del ejercicio ",null,23,{"$f":"'Nota 23'!B9","v":98178039763},{"$f":"'Nota 23'!C9","v":69546296486}]
[null,null,"Subtotal",null,null,{"$f":"SUM(F43:F51)","v":730361139536},{"$f":"SUM(G43:G51)","v":632183099773}]
[null,null,"Interés minoritario",null,24,{"$f":"'Nota 24'!B8","v":"-"},{"$f":"'Nota 24'!C8","v":"-"}]
[null,"Total Patrimonio Neto",null,null,null,{"$f":"SUM(F43:F51)","v":730361139536},{"$f":"SUM(G43:G51)","v":632183099773}]
[null,"Total Pasivos y Patrimonio Neto",null,null,null,{"$f":"+F41+F54","v":1763472527015.2},{"$f":"+G41+G54","v":1412013131678.6606}]
[]
[null,"Las notas que se acompañan forman parte integrante de estos estados."]

{"sheet":"ER","index":2,"n_rows":35,"n_cols":4,"rows_kept":35,"cut":false,"hidden":false,"merged":[[46,2,46,3],[6,0,6,3],[7,0,7,3],[8,0,8,3],[9,0,9,3],[40,2,40,3]]}
[{"$f":"Indice!C1","v":"FRIGORIFICO CONCEPCION S.A."},"Indice",null,{"$f":"ER!A4","v":" "}]
[]
[]
[" "]
[]
[]
["ESTADO DE RESULTADOS"]
["Al 30 de junio de 2020"]
["Comparativo con igual período del año anterior"]
[" (Cifras expresadas en guaraníes)"]
[]
[null,"Nota",{"$f":"+BG!F7","v":"2020-06-30"},"2019-06-30"]
["Ventas",25,{"$f":"'Nota 25'!B11","v":1293593136565},{"$f":"'Nota 25'!C11","v":679343752421}]
["Costo de ventas",26,{"$f":"-'Nota 26'!B14","v":-1072126443053},{"$f":"-'Nota 26'!C14","v":-594354201998}]
["Utilidad bruta",null,{"$f":"C13+C14","v":221466693512},{"$f":"D13+D14","v":84989550423}]
["Gastos de ventas",27,{"$f":"-'Nota 27'!B36","v":-29662625406},{"$f":"-'Nota 27'!E36","v":-15981169391}]
["Gastos administrativos ",27,{"$f":"-'Nota 27'!C36","v":-27479638223},{"$f":"-'Nota 27'!F36","v":-29213621200}]
["Otros ingresos  y gastos operativos",28,{"$f":"+'Nota 28'!B10-'Nota 28'!F10","v":5786712378},{"$f":"+'Nota 28'!C10-'Nota 28'!G10","v":887101315}]
["Resultado operativo",null,{"$f":"SUM(C15:C18)","v":170111142261},{"$f":"SUM(D15:D18)","v":40681861147}]
["Ingresos financieros - neto",29,"-","-"]
["Gastos financieros -  neto",29,{"$f":"-'Nota 29'!F13","v":-61024431413},{"$f":"-'Nota 29'!G13","v":-36572870868}]
["Subtotal",null,{"$f":"SUM(C20:C21)","v":-61024431413},{"$f":"SUM(D20:D21)","v":-36572870868}]
["Resultado de inversiones en asociadas",30,"-","-"]
["Resultados ordinarios antes de impuesto a la renta y participación minoritaria",null,{"$f":"+C19+C22","v":109086710848},{"$f":"+D19+D22","v":4108990279}]
["Resultado participación minoritaria",31,"-","-"]
["Resultado ordinario antes del impuesto a la renta"]
["Impuesto a la renta",32,{"$f":"-'Nota 32'!B9","v":-10908671085},{"$f":"-'Nota 32'!C9","v":-1275961664}]
["Resultado neto de actividades ordinarias",null,{"$f":"C26+C27","v":-10908671085},{"$f":"D26+D27","v":-1275961664}]
["Resultado extraordinario neto de impuesto a la renta",33,{"$f":"-'Nota 32'!B9","v":-10908671085},{"$f":"+D28","v":-1275961664}]
["Resultado sobre actividades discontinuadas neto de impuesto a la renta",34,"-","-"]
["Utilidad neta del año ",null,{"$f":"+C24+C29","v":98178039763},{"$f":"+D24+D29","v":2833028615}]
["Utilidad neta por acción ordinaria",35,"-","-"]
[]
[]
["Las notas que se acompañan forman parte integrante de estos estados."]

{"sheet":"EVPN","index":3,"n_rows":39,"n_cols":18,"rows_kept":39,"cut":false,"hidden":false,"merged":[[10,0,11,0],[10,17,11,17],[10,2,11,2],[10,5,11,5],[10,7,11,7],[10,9,11,9],[10,11,11,11],[10,13,11,13],[10,15,11,15],[3,0,3,17],[4,0,4,17],[5,0,5,17],[6,0,6,17],[9,9,9,13]]}
["FRIGORIFICO CONCEPCION S.A.",null,null,null,null,"Indice"]
[]
[]
["ESTADO DE EVOLUCIÓN DEL PATRIMONIO NETO"]
["Al 30 de junio de 2020"]
["Comparativo con igual periodo del año anterior"]
["(Cifras expresadas en guaraníes)"]
[]
[]
[null,null,"Aporte de los propietarios",null,null,null,null,null,null,"Ganancias reservadas"]
[null,null,"Capital","Aporte para",null,"Reserva de revalúo",null,"Reserva Especiales ",null,"Reserva legal",null,"Reserva facultativa",null,"Resultados acumulados",null,"Resultados del período",null,"Total"]
[null,null,null,"aumento de capital",null,null,null,null,null,null,null,null,null,"Total"]
[]
["Saldo al 30 de junio de 2019",null,386400000000,null,null,55321309200,null,90034404188,null,20949781497,null,0,null,48458148,null,2833028615,null,{"$f":"+C14+F14+H14+J14+N14+P14","v":555586981648}]
["Cambio en política contable (Nota….)"]
["Transferencia a resultados acumulados",null,0,null,null,0,null,0,null,0,null,0,null,0,null,0,null,0]
["Distribución de dividendos s/Acta de Asamblea Ordinaria N°… de fecha………"]
["Capitalización de resultados acumulados",null,0,null,null,0,null,0,null,0,null,0,null,0,null,0,null,{"$f":"+C18+F18+H18+J18+N18+P18","v":0}]
["Aprobado en Acta de Asamblea Ordinaria N° 29 de fecha 2 de mayo de 2019"]
["Revalúo de activos fijos",null,0,null,null,6222518860,null,0,null,0,null,0,null,0,null,0,null,{"$f":"SUM(C20:P20)","v":6222518860}]
["Reservas Especiales",null,0,null,null,0,null,0,null,0,null,0,null,0,null,0,null,{"$f":"SUM(C21:P21)","v":0}]
["Reserva Legal",null,0,null,null,0,null,0,null,3660331394,null,0,null,0,null,-3660331394,null,0]
["Resultado del año",null,0,null,null,0,null,0,null,0,null,0,null,0,null,70373599265,null,{"$f":"SUM(C23:P23)","v":70373599265}]
[]
["Saldo al 31 de diciembre de 2019",null,{"$f":"+C14+C18","v":386400000000},{"$f":"SUM(D14:D23)","v":0},null,{"$f":"SUM(F14:F23)","v":61543828060},null,{"$f":"SUM(H14:H23)","v":90034404188},null,{"$f":"SUM(J14:J23)","v":24610112891},null,{"$f":"L16+L17+L18+L19+L20+L21+L23","v":0},null,{"$f":"SUM(N14:N23)","v":48458148},null,{"$f":"SUM(P14:P23)","v":69546296486},null,{"$f":"+C25+F25+H25+J25+N25+P25","v":632183099773}]
["Cambio en política contable (Nota….)"]
["Transferencia a resultados acumulados",null,0,null,null,0,null,0,null,0,null,0,null,69546296486,null,-69546296486,null,{"$f":"+C27+F27+H27+J27+N27+P27","v":0}]
["Distribución de dividendos s/Acta de Asamblea General Ordinaria N°… de fecha………"]
["Capitalización de resultados acumulados ",null,0,null,null,0,null,0,null,0,null,0,null,0,null,0,null,{"$f":"+C29+F29+H29+J29+N29+P29","v":0}]
["Reducción del capital social s/Acta de Asamblea General Ordinaria N°… de fecha…….."]
["Revalúo de activos fijos",null,0,null,null,0,null,0,null,0,null,0,null,0,null,0,null,{"$f":"+C31+F31+H31+J31+N31+P31","v":0}]
["Desafectación de la reserva de revalúo técnico"]
["Reservas Especiales ",null,0,null,null,0,null,0,null,0,null,0,null,0,null,0,null,{"$f":"+C33+F33+H33+J33+N33+P33","v":0}]
["Reserva Legal",null,0,null,null,0,null,0,null,0,null,0,null,0,null,0,null,{"$f":"+C34+F34+H34+J34+N34+P34","v":0}]
["Resultado del año",null,0,null,null,0,null,0,null,0,null,0,null,0,null,{"$f":"+ER!C31","v":98178039763},null,{"$f":"+C35+F35+H35+J35+N35+P35","v":98178039763}]
[]
["Saldo al 30 de junio de 2020",null,{"$f":"C25+C28+C31+C32+C35","v":386400000000},{"$f":"SUM(D25:D35)","v":0},null,{"$f":"F25+F28+F31+F32+F35","v":61543828060},null,{"$f":"H25+H28+H31+H32+H35","v":90034404188},null,{"$f":"SUM(J25:J35)","v":24610112891},null,{"$f":"L25+L28+L31+L32+L35","v":0},null,{"$f":"SUM(N25:N35)","v":69594754634},null,{"$f":"SUM(P25:P35)","v":98178039763},null,{"$f":"R25+R28+R31+R32+R35","v":730361139536}]
[]
["Las notas que se acompañan forman parte integrante de estos estados."]

{"sheet":"EFE","index":4,"n_rows":45,"n_cols":3,"rows_kept":45,"cut":false,"hidden":false,"merged":[[2,0,2,2],[4,0,4,2],[5,0,5,2],[6,0,6,2],[7,0,7,2]]}
[{"$f":"Indice!C1","v":"FRIGORIFICO CONCEPCION S.A."}]
[]
[]
[]
["ESTADO DE FLUJOS DE EFECTIVO (Método directo)"]
["Al 30 de junio de 2020"]
["Comparativo con igual periodo del año anterior"]
["(Cifras expresadas en guaraníes)"]
[]
[]
[null,{"$f":"+BG!F7","v":"2020-06-30"},"2019-06-30"]
[]
["FLUJO DE EFECTIVO DE ACTIVIDADES OPERATIVAS"]
["Cobranzas efectuadas a clientes",994116606448,677884932123]
["Pagos efectuados a proveedores y empleados",-1114239629658,{"$f":"-574649226843+7554631562","v":-567094595281}]
["Efectivo generado por las operaciones",{"$f":"+B14+B15","v":-120123023210},{"$f":"+C14+C15","v":110790336842}]
["Intereses pagados","-","-"]
["Otros ingresos y (egresos) - neto",5786712378,887101315]
["Pagos de impuesto a la renta","-","-"]
["Flujo neto de efectivo de actividades operativas",{"$f":"+B16+B18","v":-114336310832},{"$f":"+C16+C18","v":111677438157}]
[]
["FLUJO DE EFECTIVO DE ACTIVIDADES DE INVERSIÓN "]
["Adquisición de bienes de uso",-3280676869,-970356087]
["Adquisición de bienes Curtiembre - fideicomitida"]
["Ventas de activos fijos",0,0]
["Ventas de bienes de uso","-","-"]
["Intereses cobrados sobre inversiones","-","-"]
["Aquisición de inversiones","-","-"]
["Flujo neto de efectivo de actividades de inversión",{"$f":"SUM(B23:B28)","v":-3280676869},{"$f":"SUM(C23:C28)","v":-970356087}]
[]
["FLUJO DE EFECTIVO DE ACTIVIDADES DE FINANCIACIÓN"]
["(Disminución) Incremento de préstamos",-410456586535,-53734949918]
["Intereses pagados y gastos bancarios",-8722471671,-21860567318]
["(Pagos) Colocaciones de Bonos Bursátiles ",615047867430,-30392300166]
["Aportes de capital recibidos","-","-"]
["Dividendos pagados","-","-"]
["Flujo neto de efectivo de actividades de financiamiento",{"$f":"SUM(B32:B36)","v":195868809224},{"$f":"SUM(C32:C36)","v":-105987817402}]
[]
["(Disminución) Incremento neto de efectivo",{"$f":"+B20+B29+B37","v":78251821523},{"$f":"+C20+C29+C37","v":4719264668}]
["Efecto estimado de la diferencia de cambio sobre el saldo de efectivo",-21745293493,-7554631562]
["Efectivo al principio del año",10161228621,7958513123]
[]
["Efectivo al final del periodo",{"$f":"+SUM(B39:B41)","v":66667756651},{"$f":"+SUM(C39:C41)","v":5123146229}]
[]
["Las notas que se acompañan forman parte integrante de estos estados."]

{"sheet":"Nota1","index":5,"n_rows":20,"n_cols":9,"rows_kept":20,"cut":false,"hidden":false,"merged":[[8,9,8,11],[14,0,14,8],[16,0,16,8],[18,0,18,8],[20,0,20,8],[19,0,19,8],[9,0,9,8],[17,0,17,8],[11,0,11,8],[13,0,13,8],[15,0,15,8]]}
[{"$f":"Indice!C1","v":"FRIGORIFICO CONCEPCION S.A."},null,null,null,null,null,null,null,"BG"]
[]
[]
[]
[]
["NOTAS A LOS ESTADOS FINANCIEROS CORRESPONDIENTES AL PERIODO TERMINADO",null,null,null,null,null,null,"AL 30 DE JUNIO DE 2020"]
["Presentadas en forma comparativa con el periodo terminado ",null,null,null,null,"al 31 de diciembre de 2019"]
[]
["NOTA 1 – DESCRIPCIÓN DE LA NATURALEZA Y DEL NEGOCIO DE LA COMPAÑÍA"]
["Antecedentes de la sociedad: naturaleza jurídica, antecedentes sobre la constitución de la sociedad y reformas estatutarias, actividad principal y secundarias."]
[]
["La Sociedad fue constituida originalmente con la denominación “Nelore Importadora y Exportadora S.R.L.” el 28 de agosto de 1997 según Escritura Pública Nº 70, inscripta en el Registro Público de Comercio, bajo el N° 490, folio 4596 y siguientes de la sección Contratos con fecha 5 de setiembre de 1997. "]
[]
["Posteriormente, en fecha 25 de setiembre de 1998 según Escritura Pública N° 134, se cambió la denominación a Frigorífico Concepción S.R.L., lo cual fue inscripto en el Registro Público de Comercio bajo el N° 608, folio 5216 y siguientes con fecha 13 de octubre de 1998.  "]
[]
["Finalmente en fecha 2 de agosto de 2001 según Escritura Pública N° 68, se decidió transformar la personería jurídica de Sociedad de Responsabilidad Limitada a Sociedad Anónima. "]
[]
["La Sociedad se dedica principalmente a la compra y procesamiento de ganado vacuno, y a la comercialización de carnes tanto en el mercado local como en el exterior. "]
[]
["Según Escritura Pública N° 46, de fecha 25 de junio de 2008, la Sociedad también puede emitir Títulos - Valores que podrán ser negociados a través de la Bolsa de Valores y Prroductos de Asunción S.A. previa autorización de la Comisión Nacional de Valores y de conformidad a las leyes que regulan la materia. "]

{"sheet":"Nota 2","index":6,"n_rows":102,"n_cols":9,"rows_kept":102,"cut":false,"hidden":false,"merged":[[118,5,118,13],[89,9,89,10],[93,0,93,8],[95,0,95,8],[97,0,97,8],[101,0,101,8],[99,0,99,8],[89,0,89,8],[91,0,91,8],[2,0,2,8],[78,0,78,8],[42,0,42,8],[12,0,12,8],[6,0,6,8],[35,0,35,8],[50,0,50,8],[10,0,10,8],[13,0,13,8],[16,0,16,8],[48,0,48,8],[14,0,14,8],[4,0,4,8],[8,0,8,8],[46,0,46,8],[25,0,25,8],[27,0,27,8],[29,0,29,8],[31,0,31,8],[33,0,33,8],[38,0,38,8],[39,0,39,8],[40,0,40,8],[44,0,44,8],[52,0,52,8],[54,0,54,8],[57,0,57,8],[55,0,55,8],[56,0,56,8],[58,0,58,8],[60,0,60,8],[62,0,62,8],[64,0,64,8],[66,0,66,8],[68,0,68,8],[70,0,70,8],[72,0,72,8],[73,0,73,8],[74,0,74,8],[76,0,76,8],[84,0,84,8],[85,0,85,8],[86,0,86,8],[87,0,87,8],[80,0,80,8],[82,0,82,8],[83,0,83,8]]}
[{"$f":"Indice!C1","v":"FRIGORIFICO CONCEPCION S.A."},null,null,null,null,null,null,null,"BG"]
[]
["NOTA 2 - RESUMEN DE LAS PRINCIPALES POLÍTICAS CONTABLES"]
[]
["Los estados financieros han sido preparados de acuerdo con las normas contables y criterios de valuación dictados por la Comisión Nacional de Valores y con Normas de Información Financiera emitidas por el Consejo de Contadores Públicos del Paraguay y se presentan en forma comparativa con los del periodo anterior, los cuales han sido reclasificados para facilitar su comparabilidad."]
[]
["Los presentes estados financieros se exponen siguiendo los lineamientos de presentación establecidos en las normas de la Comisión Nacional de Valores al solo efecto de su presentación ante dicho organismo de control."]
[]
["A continuación se resumen las políticas de contabilidad más significativas aplicadas por la Sociedad:"]
[]
["a.   Bases de contabilización (Según NIF Bases de preparación de los Estados Financieros)"]
[]
["Los estados financieros se expresan en Guaraníes y se han preparado sobre la base de costos históricos (excepto por el revalúo de los bienes de uso y de los bienes en fideicomiso y por el tratamiento asignado a los activos y pasivos en moneda extranjera) y no reconocen en forma integral los efectos de la inflación sobre la situación patrimonial de la Sociedad, en los resultados de las operaciones y en sus flujos de efectivo, en atención a que la corrección monetaria no constituye una práctica contable aceptada en el Paraguay. Según el índice general de precios al consumidor publicado por el Banco Central del Paraguay, la inflación acumulada al 30 de junio de 2020 y 31 de diciembre de 2019 fue del 0,8% y 5,8 % respectivamente."]
[]
["b.   Moneda extranjera"]
[]
["Los activos y pasivos en moneda extranjera (totalmente en dólares estadounidenses) se valuaron al tipo de cambio comprador y vendedor vigente a la fecha de cierre del periodo para activos y pasivos respectivamente (US$ 1 = Gs. 6.794 para activos y US$ 1 = Gs. 6.820 para pasivos al 30 de junio de 2020 y US$ 1 = Gs. 6.442para activos y US$ 1 = Gs. 6.464 para pasivos al 31 de diciembre de 2019). Las diferencias de cambio originadas por fluctuaciones en los tipos de cambio, entre las fechas de concertación de las operaciones y su liquidación o valuación al cierre del periodo, son reconocidas en resultados de cada periodo en el que se producen."]
[]
[null,null,"2020-06-30",null,null,null,"2019-12-31"]
[null,"Indicar moneda","Simbología según ISO 4217","Miles de G.",null,"Indicar moneda","Simbología según ISO 4217","Miles de G."]
["Activos","Dólares","USD ",6794,null,"Dólares","USD ",6572]
["Pasivos","Dólares","USD ",6820,null,"Dólares","USD ",6464]
[]
["Posición neta",null,null,{"$f":"+D21-D22","v":-26},null,null,null,{"$f":"+H21-H22","v":108}]
[]
["c.   Deterioro"]
["Activos financieros "]
["Un activo financiero es revisado a la fecha de cada estado financiero para determinar si existe evidencia objetiva de deterioro de valor. Un activo financiero se considera deteriorado si existe evidencia objetiva indicativa de que uno o más eventos han tenido un efecto negativo en los flujos de efectivo futuros del activo."]
[]
["Las pérdidas por deterioro de valor en relación con los activos financieros registrados al costo amortizado son calculadas como la diferencia entre el importe en libros del activo y el valor actual de los flujos de efectivo futuros estimados, descontados a la tasa de interés efectiva. "]
[]
["Los activos financieros individualmente significativos se evalúan de forma individual para analizar su deterioro. El resto de los activos financieros se evalúan en grupos que comparten características de riesgo crediticio similares."]
[]
["Todas las pérdidas por deterioro de valor se reconocen en resultados."]
[]
["Una pérdida por deterioro de valor se revierte si la reversión puede asignarse a un evento ocurrido con posterioridad al reconocimiento de la pérdida por deterioro de valor. En el caso de activos financieros registrados al costo amortizado, la reversión se reconoce en resultados."]
[]
["Activos no financieros "]
["Los valores contables de los activos de la sociedad diferentes de bienes de cambio e impuesto diferido son revisados a la fecha de cada estado financiero para determinar si existe un indicativo de deterioro."]
[]
["Si algún indicativo de deterioro existiera, el monto recuperable del activo es estimado como el mayor del precio neto de venta y el valor de uso, reconociéndose una pérdida por deterioro en el Estado de Resultados cuando el valor contable del activo o su unidad generadora de efectivo excede su monto recuperable."]
[]
["Las pérdidas por deterioro de valor reconocidas en períodos anteriores se analizan en cada fecha de cierre de año en busca de indicios de que la pérdida sea menor o haya desaparecido. Una pérdida por deterioro es revertida hasta el monto que no exceda el valor contable que hubiera correspondido si no se hubiera reconocido el deterioro, cuando posteriormente se produce un aumento en la estimación del monto recuperable."]
[]
["d.   Efectivo y equivalentes de efectivo"]
[]
["Para propósitos del estado de flujo de efectivo, el efectivo y equivalente de efectivo comprenden el efectivo disponible y los depósitos a la vista en bancos y se presentan a su valor nominal y en caso de existir las inversiones temporales asimilable a efectivo (de alta liquidez y con vencimiento originalmente pactado por plazo menor a tres meses)."]
[]
["e.  Bienes de uso fideicomitidos "]
[]
["Los bienes de uso fideicomitidos que se mencionan en la nota 8 fueron transferidos al patrimonio autónomo. De acuerdo al contrato, los bienes fueron transferidos al Fiduciario e inscriptos en los Registros Públicos, no obstante la Sociedad mantiene efectivamente el control de los bienes fideicomitidos. Las depreciaciones de los bienes de uso fideicomitidos son registradas por la Sociedad, utilizando el método lineal y similares vidas útiles que para los bienes de uso."]
[]
["f.  Bienes de cambio"]
[]
["Las existencias se valúan a su costo de adquisición, o a su valor neto de realización si éste es menor. Los ajustes a valores netos de realización se incluyen en el costo de los bienes vendidos. Las materias primas, materiales y suministros se valuaron a su costo histórico en guaraníes. "]
[]
["Los productos terminados y productos en proceso incluyen el costo de la materia prima, materiales y suministros, más el costo de la mano de obra y gastos de fabricación valuados en guaraníes, o al valor neto de realización si éste es menor. "]
[]
["El valor neto de realización es el valor de venta estimado en el curso normal de los negocios, menos costos estimados de terminación y gastos de venta."]
[]
["Los productos terminados, así como las materias primas, materiales y suministros consumidos se tomaron al costo promedio ponderado. "]
[]
["Las mercaderías en tránsito se valúan a su costo histórico en dólares estadounidenses más gastos de importación"]
[]
["g.  Inversiones"]
[]
["Las inversiones corresponden al 51% de las acciones en la sociedad Frigorífico BFC S.A. situada en Bolivia por lo que corresponde consolidar los estados financieros de Frigorífico Concepción S.A."]
[]
["h.  Bienes de uso"]
[]
["Los bienes de uso existentes al inicio del periodo están valuados a su costo revaluado de acuerdo con las disposiciones de la Ley 125/91, utilizando los coeficientes que reflejan la inflación en el país. El incremento neto en el valor de los bienes tiene como contrapartida una reserva especial que forma parte del Patrimonio Neto. Las altas del periodo se computan a su costo de adquisició y los bienes son depreciados a partir del ejercicio siguiente al de su incorporación utilizando el método lineal."]
[]
["El costo de las mejoras que extienden la vida útil de los bienes o aumentan su capacidad productiva es imputado a las cuentas respectivas del activo. Los gastos de mantenimiento son cargados a resultados. El valor residual de los bienes de uso, considerados en su conjunto, no excede su valor recuperable al cierre del periodo. Al 31 de diciembre de 2019, los Bienes de uso han sido revaluados y depreciados a los efectos de computar los efectos, tanto de la inflación acumulada a diciembre de 2019, así como de la depreciación de los bienes al cierre del periodo. Determinados activos vinculados a fideicomiso figuran presentados a su valor de adquisición más la tasación realizada en los meses de febrero, marzo, y agosto del 2015, netos de amortización y pérdida de deterioro."]
[]
["i.  Gastos pagados por anticipado"]
[]
["Los gastos pagados por anticipado están constituidos por seguros y honorarios fiduciarios a vencer y han sido valuados a su costo."]
[]
["j. Previsión para cuentas de dudoso cobro/incobrables"]
[]
["Las cuentas por cobrar y otros créditos se presentan por su cost menos cualquier pérdida por deterioro (Nota c). La previsión para deudores incobrables se ha constituido en función de los análisis de riesgo individualizado de los deudores."]
[]
["k. Reconocimiento de ingresos y egresos"]
[]
["Los principales ingresos operativos de la Sociedad se originan en la comercialización de carnes y subproductos tanto en el mercado local como en el exterior."]
["Las ventas en el mercado local son reconocidas cuando la mercadería es facturada y entregada."]
["Los ingresos por ventas al exterior se reconocen cuando los títulos y los riesgos de pérdida se transfieren al cliente y cuando la cobranza está razonablemente asegurada. La transferencia de los títulos y del riesgo de pérdida al cliente se basa en los términos del contrato de venta, por lo general, en el momento del embarque."]
["La Sociedad aplicó el principio de lo devengado a los efectos de la imputación de los gastos incurridos."]
[]
["l. Impuesto a la renta"]
[]
["El impuesto a la renta que se carga a los resultados del año a la tasa del 10% se basa en la utilidad contable antes de este concepto, ajustada por las partidas que la ley incluye o excluye para la determinación de la utilidad gravable. De acuerdo con las disposiciones de la Ley 125/91, modificada por la Ley 2421/04 la distribución de utilidades en efectivo está gravada a la tasa del 5%. El cargo a resultados en concepto de impuesto a la renta del 5% adicional correspondiente a la distribución de utilidades mencionadas, la Sociedad registra este cargo adicional de impuesto a la renta en el ejercicio en el cual la Asamblea de Accionistas decide dicha distribución."]
[]
["El impuesto diferido es calculado utilizando el método del estado de situación basado en el balance general, determinado a partir de las diferencias temporarias entre los importes contables de activos y pasivos y los importes utilizados para fines fiscales. El importe de impuesto diferido calculado está basado en la forma esperada de realización o liquidación de los importes contables de activos y pasivos, utilizado la tasa de impuesto aprobada a la fecha de los estados financieros."]
[]
["Un activo por impuesto diferido es reconocido solamente hasta el importe que es probable que futuras ganancias imponibles estarán disponibles, contras las cuales el activo pueda ser utilizado."]
[]
["m. Uso de estimaciones "]
[]
["La preparación de los presentes estados financieros requiere que el Directorio y la Gerencia de la Sociedad realicen estimaciones y evaluaciones que afectan el monto de los activos y pasivos registrados y contingentes; como así también los ingresos y egresos registrados en el período. Los resultados reales futuros pueden diferir de las estimaciones y evaluaciones a la fecha de preparación de los presentes estados financieros."]
[]
["..//.."]

{"sheet":"Nota 3","index":7,"n_rows":16,"n_cols":5,"rows_kept":16,"cut":false,"hidden":false,"merged":[]}
[{"$f":"Indice!C1","v":"FRIGORIFICO CONCEPCION S.A."},null,null,null,"BG"]
[]
[]
["NOTA 3 - EFECTIVO Y EQUIVALENTE DE EFECTIVO"]
["Cifras expresadas en guaranies"]
[]
["La composición de la cuenta es la siguiente:"]
[]
["Concepto",null,"2020-06-30","2019-12-31"]
[]
["Caja",null,1027989738,1107595986]
["Recaudaciones a depositar",null,428523119,18104600]
["Bancos Locales - Moneda local Guaraníes",null,6899097368,1722380053]
["Bancos Locales - Moneda extranjera Dólares",null,{"$f":"58312146426-23886277","v":58288260149},7303563768]
["Bancos en el Extranjero - Moneda extranjera Dólares",null,23886277,9584214]
["Total",null,{"$f":"SUM($C$11:C15)","v":66667756651},{"$f":"SUM($D$11:D15)","v":10161228621}]

{"sheet":"Nota 4","index":8,"n_rows":19,"n_cols":4,"rows_kept":19,"cut":false,"hidden":false,"merged":[[3,0,3,2],[7,1,7,2],[1,0,1,2]]}
[{"$f":"Indice!C1","v":"FRIGORIFICO CONCEPCION S.A."},null,null,"BG"]
["NO APLICABLE "]
[]
["NOTA 4 - INVERSIONES TEMPORALES"]
["Cifras expresadas en guaranies"]
[]
["La composición de la cuenta es la siguiente:"]
[]
["Concepto","2020-06-30","2019-12-31"]
["Inversiones en Titulos del Sistema Financiero Local - Moneda Local Guaraníes","-","-"]
["Inversiones en Titulos del Sistema Financiero Local - Moneda Extranjera Dólares","-","-"]
["Inversiones en Titulos del Sistema Financiero Local - Moneda Extranjera otros","-","-"]
["Inversiones en Mercado Bursatil Local - Moneda Local Guaraníes","-","-"]
["Inversiones en Mercado Bursatil Local - Moneda Extranjera Dólares","-","-"]
["Inversiones en Mercado Bursatil Extranjera - Moneda Extranjera Dólares","-","-"]
["Inversiones en Mercado Bursatil Extranjera - Moneda Extranjera otros","-","-"]
["Otras inversiones - Moneda Local Guaraníes","-","-"]
["Otras inversiones - Moneda Extranjera Dólares","-","-"]
["Total",{"$f":"SUM($B$10:B18)","v":0},{"$f":"SUM($C$10:C18)","v":0}]

{"sheet":"Nota 5","index":9,"n_rows":40,"n_cols":8,"rows_kept":40,"cut":false,"hidden":false,"merged":[[38,0,38,7],[6,2,6,3],[17,2,17,3],[30,0,30,7],[32,0,32,7],[34,0,34,7]]}
[{"$f":"Indice!C1","v":"FRIGORIFICO CONCEPCION S.A."},null,null,null,null,"BG"]
["Detallar cartera vencida y no vencida por clientes locales, extranjeros y partes relacionadas"]
["Se indicarán en este rubro todos los créditos a favor de la empresa provenientes de las  ventas de Mercaderías y/o servicios (atendiendo a la actividades ordinarias de  la empresa), separando las ventas locales en moneda nacional y/o extranjera de las ventas fuera del país en moneda nacional  y/o extranjera"]
[]
["NOTA  5 – CUENTAS POR COBRAR COMERCIALES"]
["Las cuentas a cobrar comerciales a corto plazo se integran como sigue:"]
[null,null,"En guaraníes",null,null,"Composición de la cartera de créditos por ventas","2020-06-30"]
[null,null,"2020-06-30","2019-12-31",null,"Situación","Monto","% Previsiones  sobre Cartera "]
["Deudores por ventas locales","Moneda Local Guaraníes",16798856102,21451025222,null,"A  Total Cartera no Vencida",{"$f":"+C14","v":595833879752},0]
["Deudores por ventas en el exterior","Moneda Extranjera Dólares",253694233314,412585614970,null,"B. Total Cartera Vencida",{"$f":"+G13+G14","v":3094511111}]
["Deudores por ventas en el exterior - fideicomitidos (a)","Moneda Extranjera Dólares",319867898343,0]
["Deudores - Entidad relacionada","Moneda Local Guaraníes",5472891993,4899655753,null,"Composición Cartera Vencida"]
["Menos Previsiones",null,0,0,null,"Normal",{"$f":"+C21","v":1901294139},0]
["Total",null,{"$f":"+SUM($C$9:C13)","v":595833879752},{"$f":"SUM(D9:D13)","v":438936295945},null,"En Gestión de Cobro",{"$f":"+C20","v":1193216972},1]
[null,null,null,null,null,"En Gestión de Cobro Judicial",0,0]
[]
["Las cuentas a cobrar comerciales a largo plazo se integran como sigue:",null,null,null,null,"Total de la cartera de créditos (A+B)",{"$f":"G9+G10","v":598928390863}]
[null,null,"En guaraníes"]
[null,null,"2020-06-30","2019-12-31",null,"(-) Total Previsiones",{"$f":"-((G9*H9)+(SUMPRODUCT(G13:G15,H13:H15)))","v":-1193216972}]
["Deudores por ventas en el exterior lp","Moneda Extranjera Dólares",1193216972,1193216972]
["Deudores - Entidad relacionada lp","Moneda Local Guaraníes",1901294139,1901294139,null,"TOTAL  NETO DE LA CARTERA DE CRÉDITOS",{"$f":"G17+G19","v":597735173891}]
["Menos Previsiones lp",null,-1193216972,-1193216972]
["Total",null,{"$f":"SUM(C20:C22)","v":1901294139},{"$f":"+SUM($D$20:D22)","v":1901294139},null,"Observaciones"]
[null,null,null,null,null,"Criterios de Clasificación utilizados","De","A"]
["Total",null,{"$f":"+C14+C23","v":597735173891},{"$f":"+D14+D23","v":440837590084},null,"Normal"]
[null,null,null,null,null,"En Gestión de Cobro",null,365]
[null,null,null,null,null,"En Gestión de Cobro Judicial",365]
[]
[]
[]
["La sociedad celebró un Contrato de Fideicomiso de Administración y Garantía en la relación con la emisión de bonos en el mercado de capitales norteamericano e internacional del FRIGORIFICO CONCEPCION S.A.,  a favor de WILMINGTON TRUST, en carácter de Beneficiario, Dicho contrato se celebró con la entidad FINANCIERA FINEXPAR S.A.E.C.A., el cual se hallaba sujeto a la emisión de bonos internacional, que se concretó el 29 de enero del 2.020, fecha en la cual paso a formar parte de la estructura de garantía (colateral) de la mencionada emisión, junto con las siguientes escrituras:"]
[]
["a)       Acuerdo de terminación  de Contrato de Fideicomiso (restitución de inmuebles y muebles) formalizado en la firma Frigorífico Concepción S.A. (Fideicomitente), Sudameris Bank S.A.E.C.A. (Beneficiario) y Banco Atlas S.A. (fiduciario) y transferencia de bienes muebles e inmuebles a favor de FINEXPAR S.A.E.C.A., en su carácter de fiduciario del fideicomiso de Administración y Garantía – Emisión Internacional de Bonos Frigorífico Concepción S.A., Escritura N° 3, pasada ante la ESCRIBANA MARIA EMILIA BAEZ DELVALLE, inscripta en la Dirección General de los Registros Públicos de la República, según consta en la escritura respectiva,   "]
[]
["b)       Acuerdos de terminaciones de los Contratos de Fideicomiso de Garantía por las emisiones de bonos emitidos por Frigorífico Concepción S.A. en  calidad de fideicomitente, Cadiem Casa de Bolsa S.A., en calidad de representante de tenedores de bonos (beneficiarios) y Banco Atlas S.A., en calidad de fiduciario, tanto en guaraníes como en dólares,"]
[]
["Celebradas todas en fecha 29 de enero del 2.020,"]
[]
["A partir de la estructura contractual descripta, la sociedad cedió el derecho de cobro de las  CUENTAS A COBRAR vigentes, para la conformación del Patrimonio Autónomo del nuevo fideicomiso de administración y garantía, administrado por la fiduciaria Finexpar S.A.E.C.A.  Dicha documentación cedida y sujeta a determinadas condiciones, recibe su respectiva cobranza en una cuenta bancaria fiduciaria.  A la sustitución de los documentos cobrados, por nueva cartera de documentos a cobrar, la fiduciaria procede a devolver los fondos colectados en la mencionada cuenta fiduciaria, creando así un ciclo de renovación constante de documentos a cobrar, con lo cual la garantía demuestra un movimiento dinámico del flujo de dinero de la compañía."]
["..//.."]

{"sheet":"Nota 6","index":10,"n_rows":19,"n_cols":7,"rows_kept":19,"cut":false,"hidden":false,"merged":[]}
[{"$f":"Indice!C1","v":"FRIGORIFICO CONCEPCION S.A."},null,null,"BG",{"$f":"Indice!C1","v":"FRIGORIFICO CONCEPCION S.A."}]
[]
["Corrientes",null,null,null,"No corrientes"]
[]
["Concepto","2020-06-30","2019-12-31",null,"Concepto","2020-06-30","2019-12-31"]
["Partes relacionadas (Nota 14)",23363563392,17653243486,null,"Partes relacionadas (Nota 14) lp",72728460243,47964888012]
["Anticipos a proveedores de ganado",9693991373,22069819036,null,"Garantía de Alquiler",0,0]
["Anticipos a proveedores del exterior",7643260259,8710655756,null,"I.V.A. Crédito fiscal",7599114551,7599114551]
["Anticipos a proveedores locales ",9222597960,7747790916,null,"Anticipos a proveedores ",7058556902,7058556902]
["Gastos pagados por adelantado",854683032,1809876319,null,"I.V.A Mercado Local",35969774192,38108656684]
["I.V.A. excedente 2019",0,13562368157,null,"Retención Impuesto al Valor Agregado",14761039817,14162439530]
["I.V.A. excedente 2020",38786033744,0,null,"I.V.A Crédito fiscal en sumario",18881887013,18268352405]
["Crédito fiscal a acreditar ",2105419509,4979638080,null,"Otros créditos  lp",62205458955,0]
["Garantía de Alquiler",1023449527,987985052,null,"Total",{"$f":"SUM(F6:F13)","v":219204291673},{"$f":"SUM(G6:G13)","v":133162008084}]
["Anticipo Impuesto a la Renta",9714288512,0]
["Retención Impuesto a la Renta",0,0,null,"Concepto","2020-06-30","2019-12-31"]
["Retención Impuesto al Valor agregado",81265186,0]
["Otros créditos ",9048394327,{"$f":"7175891365+2920868397-1809876319","v":8286883443},null,"(-) Previsión para incobrables ",-7058556902,-7058556902]
["Total",{"$f":"SUM($B$6:B18)","v":111536946821},{"$f":"SUM($C$6:C18)","v":85808260245},null,"Total neto de previsiones ",{"$f":"+F14+F18","v":212145734771},{"$f":"+G14+G18","v":126103451182}]

{"sheet":"Nota 7","index":11,"n_rows":15,"n_cols":4,"rows_kept":15,"cut":false,"hidden":false,"merged":[[6,1,6,2],[5,0,5,6],[3,0,3,2]]}
[{"$f":"Indice!C1","v":"FRIGORIFICO CONCEPCION S.A."},null,null,"BG"]
[]
[]
["NOTA 7 – INVENTARIOS"]
["Cifras expresadas en guaranies"]
["Los bienes de cambio están compuestos de la siguiente manera:"]
[]
["Concepto","2020-06-30","2019-12-31"]
["Mercaderías",403616941383,374363765644]
["Productos terminados",0,0]
["Productos en proceso",0,0]
["Materia prima",0,0]
["Materiales - insumos industriales ",14850134822,13295334416]
["(-) Previsión para desvalorización y deterioro de inventario",0,0]
["Total ",{"$f":"SUM(B9:B14)","v":418467076205},{"$f":"SUM(C9:C14)","v":387659100060}]

{"sheet":"Nota 8","index":12,"n_rows":18,"n_cols":12,"rows_kept":18,"cut":false,"hidden":false,"merged":[[3,0,3,5]]}
[{"$f":"Indice!C1","v":"FRIGORIFICO CONCEPCION S.A."},null,null,"BG"]
[]
[]
["Nota 8 - INVERSIONES EN ASOCIADAS"]
["Cifras expresadas en guaraníes"]
["Las inversiones en sociedades donde  se ejerce control se describen a continuación"]
["Periodo","2020-06-30","2019-12-31"]
["Total Inversión",{"$f":"SUM($I$13:I18)","v":30056300},30056300]
[]
["a) Datos sobre la sociedad:",null,null,null,null,null,"a) Datos sobre la inversión:"]
[null,null,null,{"$f":"IFERROR(IF(Indice!B6=\"\",\"2XX2\",YEAR(Indice!B6)),\"2XX2\")","v":2020}]
["Nombre de Sociedad","RUC","Cantidad de acciones","Total Patrimonio neto","Total del resultado",null,"Cantidad de acciones","Participación sobre los votos (%)","Total Inversión (miles de Gs)","Participación sobre el Patrimonio Neto (%)","Total valuación patrimonial proporcional","Resultado sobre inversiones"]
["FRIGORIFICO BFC S.A. ","-",700,25203629198,0,null,357,0.51,30056300,0.51,{"$f":"J13*D13","v":12853850890.98},{"$f":"J13*E13","v":0}]
[null,null,null,null,null,null,null,null,null,null,{"$f":"J14*D14","v":0},{"$f":"J14*E14","v":0}]
[null,null,null,null,null,null,null,null,null,null,0,0]
[null,null,null,null,null,null,null,null,null,null,0,0]
[null,null,null,null,null,null,null,null,null,null,0,0]
[null,null,null,null,null,null,null,null,null,null,0,0]

{"sheet":"Nota 9","index":13,"n_rows":48,"n_cols":13,"rows_kept":48,"cut":false,"hidden":false,"merged":[[3,0,3,12],[24,11,24,12],[6,11,6,12],[6,10,7,10],[6,9,7,9],[6,8,7,8],[6,7,7,7],[6,6,7,6],[6,5,7,5],[6,4,7,4],[6,3,7,3],[6,2,7,2],[6,1,7,1],[6,0,7,0],[34,0,34,12],[35,0,35,12],[37,0,37,12],[38,0,38,12],[39,0,39,12],[48,0,48,12],[41,0,41,12],[43,0,43,12],[45,0,45,12],[46,0,46,12],[47,0,47,12]]}
[{"$f":"Indice!C1","v":"FRIGORIFICO CONCEPCION S.A."},null,null,null,null,null,null,null,null,null,null,"BG"]
[]
[]
["NOTA 9 - PROPIEDADES, PLANTA Y EQUIPO - NETO"]
["Cifras expresadas en guaraníes",null,null,null,null,null,null,null,null,-1]
[]
["Detalle","Costo histórico revaluado al inicio del año","Adquisiciones","Reclasificaciones ","Revalúo del año","Valor de origen revaluado al final del año","Depreciación acumulada revaluada al inicio del año","Depreciación del año","Reclasificaciones ","Revalúo depreciación acumulada del año","Depreciación acumulada revaluada al final del año","Valor neto contable"]
[null,null,null,null,null,null,null,null,null,null,null,"2020-06-30","2019-12-31"]
["Terrenos",47056628235,0,-10071798405,0,{"$f":"SUM(B9:E9)","v":36984829830},0,0,0,0,0,{"$f":"+F9-K9","v":36984829830},47056628235]
["Mejoras en Predio",31092461135,17974118,-15740773703,0,{"$f":"SUM(B10:E10)","v":15369661550},-4788034860,-721462824.30586231,441426562,0,-5068071122.3058624,{"$f":"+F10+K10","v":10301590427.694138},26304426275]
["Maquinarias y Equipos",28177827967,1456412117,-17646063296,0,11988176788,-9360312470,-507034984.53821629,5932023338,0,-3935324116.5382156,{"$f":"+F11+K11","v":8052852671.4617844},18817515500]
["Instalaciones",13497626582,206826545,-12755705177,0,948747950,-7828603779,-66539053.620261908,7517980281,0,-377162551.62026215,571585398.37973785,5669022803]
["Edificios",6338569191,0,-18487252,0,6320081939,-1389276025,-79001024.254282862,-31910258,0,-1500187307.254283,4819894631.745717,6042500743]
["Barcazas",6098931746,0,20477639,0,6119409385,-940629949,-152985234.5836449,-20477639,0,-1114092822.5836449,5005316562.4163551,5158301797]
["Avionetas",15916019871,1176754333,292461305,0,17385235509,-14009397941,-346081750.07409179,-292461220,0,-14647940911.074091,2737294597.925909,1906621930]
["Rodados",17689137983,126600000,40727085,0,17856465068,-15816229667,-373256498.11669862,-40727079,0,-16230213244.116699,1626251823.8833008,1872908316]
["Construcciones",2733869070,59500166,0,0,2793369236,0,0,0,0,0,2793369236,{"$f":"2733869070+96","v":2733869166}]
["Muebles y Utiles",2717293193,18093350,-567864666,0,2167521877,-1356654842,-99681423.273217469,232108546,0,-1224227719.2732174,{"$f":"+F18+K18","v":943294157.72678256},267430773]
["Herramientas",1738037587,13154544,39074502,0,1790266633,-961756280,-132214275.97168392,-39074502,0,-1133045057.971684,657221575.02831602,776281307]
["Equipos de computacion",3030740881,18301419,127042524,0,3176084824,-2783236022,-70070808.815401033,-103149763,0,-2956456593.8154011,219628230.18459892,247504762]
["Softwares Informaticos",156478021,0,-25613684,0,130864337,-100645684,-4686588.3104919782,1720923,0,-103611349.31049198,27252987.689508021,55832336]
["Sub total ",{"$f":"SUM(B9:B21)","v":176243621462},3093616592,-56306523128,0,123030714926,-59334777519,-2553014465.8638535,13597459189,0,-48290332795.863853,{"$f":"SUM($L$9:L21)","v":74740382130.136169},{"$f":"SUM($M$9:M21)","v":116908843943}]
[]
[]
[null,"Costo histórico revaluado al inicio del año","Adquisiciones","Reclasificaciones ","Revalúo del año","Valor de origen revaluado al final del año","Depreciación acumulada revaluada al inicio del año","Depreciación del año","Reclasificaciones ","Revalúo depreciación acumulada del año","Depreciación acumulada revaluada al final del año","Valor neto contable"]
[null,null,null,null,null,null,null,null,null,null,null,"2020-06-30","2019-12-31"]
["Inmuebles fideicomiso",154040920236,6597781,27830442407,0,{"$f":"SUM(B27:E27)","v":181877960424},18698943028,-1331441361.0716031,-2408899339,0,{"$f":"-22439283728.0716","v":-22439283728.071602},{"$f":"+F27+K27","v":159438676695.92841},135341977208]
["Muebles fideicomiso ",168271988494,180462496,31458598671,0,199911049661,106038724458,-3919883852.6551399,-14171077800.41,0,-124129686111.06514,{"$f":"+F28+K28","v":75781363549.93486},62233264036]
["Sub total ",{"$f":"SUM(B27:B28)","v":322312908730},{"$f":"SUM(C27:C28)","v":187060277},59289041078,0,381789010085,124737667486,-5251325213.7267427,-16579977139.41,0,-146568969839.13675,235220040245.86328,197575241244]
[]
["Total ",{"$f":"+B22+B29","v":498556530192},{"$f":"+C22+C29","v":3280676869},2982517950,0,504819725011,65402889967,-7804339679.5905962,-2982517950.4099998,0,-194859302635.00061,309960422375.99945,{"$f":"+M22+M29","v":314484085187}]
[]
["Bienes de uso fideicomitidos "]
[]
["La Sociedad constituyó una nueva operación fiduciaria identificada como “Contrato de Fideicomiso de Administración y Garantía – Emisión Internacional de Bonos Frigorífico Concepción S.A. entre Frigorífico Concepción S.A. en carácter de fideicomitente, Wilmington Trust National Association, en carácter de beneficiario y Finexpar S.A.E.C.A. en carácter de fiduciaria, Esta operación se generó inicialmente mediante contrato celebrado en fecha 12 de diciembre del 2.019, formalizándose posteriormente mediante las escrituras públicas Números 03, 05 y 51, todas de fecha 29 de enero del 2.020, pasadas ante la escribana María Emilia Báez Delvalle, todas debidamente registradas en la Dirección General de los Registros Públicos.  "]
["Este fideicomiso fue constituido en garantía para la emisión de bonos internacionales, en una transacción descripta en la Nota 12.2 constituyendo un patrimonio autónomo integrado por:"]
[]
["·         Bienes inmuebles y maquinaria industrial de la industria frigorífica de ciclo completo situada en la ciudad de Concepción."]
["·         Bienes inmuebles y maquinaria industrial de la curtiembre, situada en la ciudad de Concepción."]
["·         Bienes inmuebles y maquinaria industrial de la planta de Ciclo II, situada en el Barrio Trinidad de Asunción."]
[]
["Dichos bienes muebles e inmuebles, poseen tasaciones actualizadas a Setiembre 2019, realizadas por el Arquitecto Curt Tippach, tasador registrado en el Banco Central del Paraguay, con matricula C.S.J. 712. "]
[]
["La transacción fue estructurada a partir de la cancelación de determinadas deudas contraídas con el sistema financiero (Sudameris Bank S.A., Banco Continental S.A.E.C.A. y Banco Basa S.A.) que poseían en garantía de las mismas, los mencionados bienes, como patrimonios autónomos de los respectivos fideicomisos de garantía, los cuales fueron cancelados en su totalidad."]
[]
["La duración del Contrato de Fideicomiso mencionado en este apartado, es de diez (10) años contados a partir de la emisión de los BONOS INTERNACIONALES FRIGORIFICO CONCEPCION S.A..  No obstante, surtirá todos sus efectos hasta que los derechos y obligaciones regulados sean íntegramente satisfechos para todas las partes."]
[]
["Al 30 de junio de 2020, tanto los Bienes de uso fideicomitidos, como los restantes han sido  depreciados a fin de computar los efectos del desgaste de los bienes depreciables, de acuerdo a los criterio tributariamente permitidos en su reglamentación vigente."]

{"sheet":"Nota 10","index":14,"n_rows":20,"n_cols":3,"rows_kept":20,"cut":false,"hidden":false,"merged":[[2,0,2,3],[4,70,4,75],[4,76,4,81],[4,82,4,87],[4,88,4,93],[4,94,4,99],[4,100,4,105],[4,34,4,39],[4,40,4,45],[4,46,4,51],[4,52,4,57],[4,58,4,63],[4,64,4,69],[4,4,4,9],[4,10,4,15],[4,16,4,21],[4,22,4,27],[4,28,4,33],[4,286,4,291],[4,292,4,297],[4,298,4,303],[4,304,4,309],[4,310,4,315],[4,316,4,321],[4,250,4,255],[4,256,4,261],[4,262,4,267],[4,268,4,273],[4,274,4,279],[4,280,4,285],[4,214,4,219],[4,220,4,225],[4,226,4,231],[4,232,4,237],[4,238,4,243],[4,244,4,249],[4,178,4,183],[4,184,4,189],[4,190,4,195],[4,196,4,201],[4,202,4,207],[4,208,4,213],[4,142,4,147],[4,148,4,153],[4,154,4,159],[4,160,4,165],[4,166,4,171],[4,172,4,177],[4,106,4,111],[4,112,4,117],[4,118,4,123],[4,124,4,129],[4,130,4,135],[4,136,4,141],[4,502,4,507],[4,508,4,513],[4,514,4,519],[4,520,4,525],[4,526,4,531],[4,532,4,537],[4,466,4,471],[4,472,4,477],[4,478,4,483],[4,484,4,489],[4,490,4,495],[4,496,4,501],[4,430,4,435],[4,436,4,441],[4,442,4,447],[4,448,4,453],[4,454,4,459],[4,460,4,465],[4,394,4,399],[4,400,4,405],[4,406,4,411],[4,412,4,417],[4,418,4,423],[4,424,4,429],[4,358,4,363],[4,364,4,369],[4,370,4,375],[4,376,4,381],[4,382,4,387],[4,388,4,393],[4,322,4,327],[4,328,4,333],[4,334,4,339],[4,340,4,345],[4,346,4,351],[4,352,4,357],[4,718,4,723],[4,724,4,729],[4,730,4,735],[4,736,4,741],[4,742,4,747],[4,748,4,753],[4,682,4,687],[4,688,4,693],[4,694,4,699],[4,700,4,705],[4,706,4,711],[4,712,4,717],[4,646,4,651],[4,652,4,657],[4,658,4,663],[4,664,4,669],[4,670,4,675],[4,676,4,681],[4,610,4,615],[4,616,4,621],[4,622,4,627],[4,628,4,633],[4,634,4,639],[4,640,4,645],[4,574,4,579],[4,580,4,585],[4,586,4,591],[4,592,4,597],[4,598,4,603],[4,604,4,609],[4,538,4,543],[4,544,4,549],[4,550,4,555],[4,556,4,561],[4,562,4,567],[4,568,4,573],[4,934,4,939],[4,940,4,945],[4,946,4,951],[4,952,4,957],[4,958,4,963],[4,964,4,969],[4,898,4,903],[4,904,4,909],[4,910,4,915],[4,916,4,921],[4,922,4,927],[4,928,4,933],[4,862,4,867],[4,868,4,873],[4,874,4,879],[4,880,4,885],[4,886,4,891],[4,892,4,897],[4,826,4,831],[4,832,4,837],[4,838,4,843],[4,844,4,849],[4,850,4,855],[4,856,4,861],[4,790,4,795],[4,796,4,801],[4,802,4,807],[4,808,4,813],[4,814,4,819],[4,820,4,825],[4,754,4,759],[4,760,4,765],[4,766,4,771],[4,772,4,777],[4,778,4,783],[4,784,4,789],[4,1150,4,1155],[4,1156,4,1161],[4,1162,4,1167],[4,1168,4,1173],[4,1174,4,1179],[4,1180,4,1185],[4,1114,4,1119],[4,1120,4,1125],[4,1126,4,1131],[4,1132,4,1137],[4,1138,4,1143],[4,1144,4,1149],[4,1078,4,1083],[4,1084,4,1089],[4,1090,4,1095],[4,1096,4,1101],[4,1102,4,1107],[4,1108,4,1113],[4,1042,4,1047],[4,1048,4,1053],[4,1054,4,1059],[4,1060,4,1065],[4,1066,4,1071],[4,1072,4,1077],[4,1006,4,1011],[4,1012,4,1017],[4,1018,4,1023],[4,1024,4,1029],[4,1030,4,1035],[4,1036,4,1041],[4,970,4,975],[4,976,4,981],[4,982,4,987],[4,988,4,993],[4,994,4,999],[4,1000,4,1005],[4,1366,4,1371],[4,1372,4,1377],[4,1378,4,1383],[4,1384,4,1389],[4,1390,4,1395],[4,1396,4,1401],[4,1330,4,1335],[4,1336,4,1341],[4,1342,4,1347],[4,1348,4,1353],[4,1354,4,1359],[4,1360,4,1365],[4,1294,4,1299],[4,1300,4,1305],[4,1306,4,1311],[4,1312,4,1317],[4,1318,4,1323],[4,1324,4,1329],[4,1258,4,1263],[4,1264,4,1269],[4,1270,4,1275],[4,1276,4,1281],[4,1282,4,1287],[4,1288,4,1293],[4,1222,4,1227],[4,1228,4,1233],[4,1234,4,1239],[4,1240,4,1245],[4,1246,4,1251],[4,1252,4,1257],[4,1186,4,1191],[4,1192,4,1197],[4,1198,4,1203],[4,1204,4,1209],[4,1210,4,1215],[4,1216,4,1221],[4,1582,4,1587],[4,1588,4,1593],[4,1594,4,1599],[4,1600,4,1605],[4,1606,4,1611],[4,1612,4,1617],[4,1546,4,1551],[4,1552,4,1557],[4,1558,4,1563],[4,1564,4,1569],[4,1570,4,1575],[4,1576,4,1581],[4,1510,4,1515],[4,1516,4,1521],[4,1522,4,1527],[4,1528,4,1533],[4,1534,4,1539],[4,1540,4,1545],[4,1474,4,1479],[4,1480,4,1485],[4,1486,4,1491],[4,1492,4,1497],[4,1498,4,1503],[4,1504,4,1509],[4,1438,4,1443],[4,1444,4,1449],[4,1450,4,1455],[4,1456,4,1461],[4,1462,4,1467],[4,1468,4,1473],[4,1402,4,1407],[4,1408,4,1413],[4,1414,4,1419],[4,1420,4,1425],[4,1426,4,1431],[4,1432,4,1437],[4,1798,4,1803],[4,1804,4,1809],[4,1810,4,1815],[4,1816,4,1821],[4,1822,4,1827],[4,1828,4,1833],[4,1762,4,1767],[4,1768,4,1773],[4,1774,4,1779],[4,1780,4,1785],[4,1786,4,1791],[4,1792,4,1797],[4,1726,4,1731],[4,1732,4,1737],[4,1738,4,1743],[4,1744,4,1749],[4,1750,4,1755],[4,1756,4,1761],[4,1690,4,1695],[4,1696,4,1701],[4,1702,4,1707],[4,1708,4,1713],[4,1714,4,1719],[4,1720,4,1725],[4,1654,4,1659],[4,1660,4,1665],[4,1666,4,1671],[4,1672,4,1677],[4,1678,4,1683],[4,1684,4,1689],[4,1618,4,1623],[4,1624,4,1629],[4,1630,4,1635],[4,1636,4,1641],[4,1642,4,1647],[4,1648,4,1653],[4,2014,4,2019],[4,2020,4,2025],[4,2026,4,2031],[4,2032,4,2037],[4,2038,4,2043],[4,2044,4,2049],[4,1978,4,1983],[4,1984,4,1989],[4,1990,4,1995],[4,1996,4,2001],[4,2002,4,2007],[4,2008,4,2013],[4,1942,4,1947],[4,1948,4,1953],[4,1954,4,1959],[4,1960,4,1965],[4,1966,4,1971],[4,1972,4,1977],[4,1906,4,1911],[4,1912,4,1917],[4,1918,4,1923],[4,1924,4,1929],[4,1930,4,1935],[4,1936,4,1941],[4,1870,4,1875],[4,1876,4,1881],[4,1882,4,1887],[4,1888,4,1893],[4,1894,4,1899],[4,1900,4,1905],[4,1834,4,1839],[4,1840,4,1845],[4,1846,4,1851],[4,1852,4,1857],[4,1858,4,1863],[4,1864,4,1869],[4,2230,4,2235],[4,2236,4,2241],[4,2242,4,2247],[4,2248,4,2253],[4,2254,4,2259],[4,2260,4,2265],[4,2194,4,2199],[4,2200,4,2205],[4,2206,4,2211],[4,2212,4,2217],[4,2218,4,2223],[4,2224,4,2229],[4,2158,4,2163],[4,2164,4,2169],[4,2170,4,2175],[4,2176,4,2181],[4,2182,4,2187],[4,2188,4,2193],[4,2122,4,2127],[4,2128,4,2133],[4,2134,4,2139],[4,2140,4,2145],[4,2146,4,2151],[4,2152,4,2157],[4,2086,4,2091],[4,2092,4,2097],[4,2098,4,2103],[4,2104,4,2109],[4,2110,4,2115],[4,2116,4,2121],[4,2050,4,2055],[4,2056,4,2061],[4,2062,4,2067],[4,2068,4,2073],[4,2074,4,2079],[4,2080,4,2085],[4,2446,4,2451],[4,2452,4,2457],[4,2458,4,2463],[4,2464,4,2469],[4,2470,4,2475],[4,2476,4,2481],[4,2410,4,2415],[4,2416,4,2421],[4,2422,4,2427],[4,2428,4,2433],[4,2434,4,2439],[4,2440,4,2445],[4,2374,4,2379],[4,2380,4,2385],[4,2386,4,2391],[4,2392,4,2397],[4,2398,4,2403],[4,2404,4,2409],[4,2338,4,2343],[4,2344,4,2349],[4,2350,4,2355],[4,2356,4,2361],[4,2362,4,2367],[4,2368,4,2373],[4,2302,4,2307],[4,2308,4,2313],[4,2314,4,2319],[4,2320,4,2325],[4,2326,4,2331],[4,2332,4,2337],[4,2266,4,2271],[4,2272,4,2277],[4,2278,4,2283],[4,2284,4,2289],[4,2290,4,2295],[4,2296,4,2301],[4,2662,4,2667],[4,2668,4,2673],[4,2674,4,2679],[4,2680,4,2685],[4,2686,4,2691],[4,2692,4,2697],[4,2626,4,2631],[4,2632,4,2637],[4,2638,4,2643],[4,2644,4,2649],[4,2650,4,2655],[4,2656,4,2661],[4,2590,4,2595],[4,2596,4,2601],[4,2602,4,2607],[4,2608,4,2613],[4,2614,4,2619],[4,2620,4,2625],[4,2554,4,2559],[4,2560,4,2565],[4,2566,4,2571],[4,2572,4,2577],[4,2578,4,2583],[4,2584,4,2589],[4,2518,4,2523],[4,2524,4,2529],[4,2530,4,2535],[4,2536,4,2541],[4,2542,4,2547],[4,2548,4,2553],[4,2482,4,2487],[4,2488,4,2493],[4,2494,4,2499],[4,2500,4,2505],[4,2506,4,2511],[4,2512,4,2517],[4,2878,4,2883],[4,2884,4,2889],[4,2890,4,2895],[4,2896,4,2901],[4,2902,4,2907],[4,2908,4,2913],[4,2842,4,2847],[4,2848,4,2853],[4,2854,4,2859],[4,2860,4,2865],[4,2866,4,2871],[4,2872,4,2877],[4,2806,4,2811],[4,2812,4,2817],[4,2818,4,2823],[4,2824,4,2829],[4,2830,4,2835],[4,2836,4,2841],[4,2770,4,2775],[4,2776,4,2781],[4,2782,4,2787],[4,2788,4,2793],[4,2794,4,2799],[4,2800,4,2805],[4,2734,4,2739],[4,2740,4,2745],[4,2746,4,2751],[4,2752,4,2757],[4,2758,4,2763],[4,2764,4,2769],[4,2698,4,2703],[4,2704,4,2709],[4,2710,4,2715],[4,2716,4,2721],[4,2722,4,2727],[4,2728,4,2733],[4,3094,4,3099],[4,3100,4,3105],[4,3106,4,3111],[4,3112,4,3117],[4,3118,4,3123],[4,3124,4,3129],[4,3058,4,3063],[4,3064,4,3069],[4,3070,4,3075],[4,3076,4,3081],[4,3082,4,3087],[4,3088,4,3093],[4,3022,4,3027],[4,3028,4,3033],[4,3034,4,3039],[4,3040,4,3045],[4,3046,4,3051],[4,3052,4,3057],[4,2986,4,2991],[4,2992,4,2997],[4,2998,4,3003],[4,3004,4,3009],[4,3010,4,3015],[4,3016,4,3021],[4,2950,4,2955],[4,2956,4,2961],[4,2962,4,2967],[4,2968,4,2973],[4,2974,4,2979],[4,2980,4,2985],[4,2914,4,2919],[4,2920,4,2925],[4,2926,4,2931],[4,2932,4,2937],[4,2938,4,2943],[4,2944,4,2949],[4,3310,4,3315],[4,3316,4,3321],[4,3322,4,3327],[4,3328,4,3333],[4,3334,4,3339],[4,3340,4,3345],[4,3274,4,3279],[4,3280,4,3285],[4,3286,4,3291],[4,3292,4,3297],[4,3298,4,3303],[4,3304,4,3309],[4,3238,4,3243],[4,3244,4,3249],[4,3250,4,3255],[4,3256,4,3261],[4,3262,4,3267],[4,3268,4,3273],[4,3202,4,3207],[4,3208,4,3213],[4,3214,4,3219],[4,3220,4,3225],[4,3226,4,3231],[4,3232,4,3237],[4,3166,4,3171],[4,3172,4,3177],[4,3178,4,3183],[4,3184,4,3189],[4,3190,4,3195],[4,3196,4,3201],[4,3130,4,3135],[4,3136,4,3141],[4,3142,4,3147],[4,3148,4,3153],[4,3154,4,3159],[4,3160,4,3165],[4,3526,4,3531],[4,3532,4,3537],[4,3538,4,3543],[4,3544,4,3549],[4,3550,4,3555],[4,3556,4,3561],[4,3490,4,3495],[4,3496,4,3501],[4,3502,4,3507],[4,3508,4,3513],[4,3514,4,3519],[4,3520,4,3525],[4,3454,4,3459],[4,3460,4,3465],[4,3466,4,3471],[4,3472,4,3477],[4,3478,4,3483],[4,3484,4,3489],[4,3418,4,3423],[4,3424,4,3429],[4,3430,4,3435],[4,3436,4,3441],[4,3442,4,3447],[4,3448,4,3453],[4,3382,4,3387],[4,3388,4,3393],[4,3394,4,3399],[4,3400,4,3405],[4,3406,4,3411],[4,3412,4,3417],[4,3346,4,3351],[4,3352,4,3357],[4,3358,4,3363],[4,3364,4,3369],[4,3370,4,3375],[4,3376,4,3381],[4,3742,4,3747],[4,3748,4,3753],[4,3754,4,3759],[4,3760,4,3765],[4,3766,4,3771],[4,3772,4,3777],[4,3706,4,3711],[4,3712,4,3717],[4,3718,4,3723],[4,3724,4,3729],[4,3730,4,3735],[4,3736,4,3741],[4,3670,4,3675],[4,3676,4,3681],[4,3682,4,3687],[4,3688,4,3693],[4,3694,4,3699],[4,3700,4,3705],[4,3634,4,3639],[4,3640,4,3645],[4,3646,4,3651],[4,3652,4,3657],[4,3658,4,3663],[4,3664,4,3669],[4,3598,4,3603],[4,3604,4,3609],[4,3610,4,3615],[4,3616,4,3621],[4,3622,4,3627],[4,3628,4,3633],[4,3562,4,3567],[4,3568,4,3573],[4,3574,4,3579],[4,3580,4,3585],[4,3586,4,3591],[4,3592,4,3597],[4,3958,4,3963],[4,3964,4,3969],[4,3970,4,3975],[4,3976,4,3981],[4,3982,4,3987],[4,3988,4,3993],[4,3922,4,3927],[4,3928,4,3933],[4,3934,4,3939],[4,3940,4,3945],[4,3946,4,3951],[4,3952,4,3957],[4,3886,4,3891],[4,3892,4,3897],[4,3898,4,3903],[4,3904,4,3909],[4,3910,4,3915],[4,3916,4,3921],[4,3850,4,3855],[4,3856,4,3861],[4,3862,4,3867],[4,3868,4,3873],[4,3874,4,3879],[4,3880,4,3885],[4,3814,4,3819],[4,3820,4,3825],[4,3826,4,3831],[4,3832,4,3837],[4,3838,4,3843],[4,3844,4,3849],[4,3778,4,3783],[4,3784,4,3789],[4,3790,4,3795],[4,3796,4,3801],[4,3802,4,3807],[4,3808,4,3813],[4,4174,4,4179],[4,4180,4,4185],[4,4186,4,4191],[4,4192,4,4197],[4,4198,4,4203],[4,4204,4,4209],[4,4138,4,4143],[4,4144,4,4149],[4,4150,4,4155],[4,4156,4,4161],[4,4162,4,4167],[4,4168,4,4173],[4,4102,4,4107],[4,4108,4,4113],[4,4114,4,4119],[4,4120,4,4125],[4,4126,4,4131],[4,4132,4,4137],[4,4066,4,4071],[4,4072,4,4077],[4,4078,4,4083],[4,4084,4,4089],[4,4090,4,4095],[4,4096,4,4101],[4,4030,4,4035],[4,4036,4,4041],[4,4042,4,4047],[4,4048,4,4053],[4,4054,4,4059],[4,4060,4,4065],[4,3994,4,3999],[4,4000,4,4005],[4,4006,4,4011],[4,4012,4,4017],[4,4018,4,4023],[4,4024,4,4029],[4,4390,4,4395],[4,4396,4,4401],[4,4402,4,4407],[4,4408,4,4413],[4,4414,4,4419],[4,4420,4,4425],[4,4354,4,4359],[4,4360,4,4365],[4,4366,4,4371],[4,4372,4,4377],[4,4378,4,4383],[4,4384,4,4389],[4,4318,4,4323],[4,4324,4,4329],[4,4330,4,4335],[4,4336,4,4341],[4,4342,4,4347],[4,4348,4,4353],[4,4282,4,4287],[4,4288,4,4293],[4,4294,4,4299],[4,4300,4,4305],[4,4306,4,4311],[4,4312,4,4317],[4,4246,4,4251],[4,4252,4,4257],[4,4258,4,4263],[4,4264,4,4269],[4,4270,4,4275],[4,4276,4,4281],[4,4210,4,4215],[4,4216,4,4221],[4,4222,4,4227],[4,4228,4,4233],[4,4234,4,4239],[4,4240,4,4245],[4,4606,4,4611],[4,4612,4,4617],[4,4618,4,4623],[4,4624,4,4629],[4,4630,4,4635],[4,4636,4,4641],[4,4570,4,4575],[4,4576,4,4581],[4,4582,4,4587],[4,4588,4,4593],[4,4594,4,4599],[4,4600,4,4605],[4,4534,4,4539],[4,4540,4,4545],[4,4546,4,4551],[4,4552,4,4557],[4,4558,4,4563],[4,4564,4,4569],[4,4498,4,4503],[4,4504,4,4509],[4,4510,4,4515],[4,4516,4,4521],[4,4522,4,4527],[4,4528,4,4533],[4,4462,4,4467],[4,4468,4,4473],[4,4474,4,4479],[4,4480,4,4485],[4,4486,4,4491],[4,4492,4,4497],[4,4426,4,4431],[4,4432,4,4437],[4,4438,4,4443],[4,4444,4,4449],[4,4450,4,4455],[4,4456,4,4461],[4,4822,4,4827],[4,4828,4,4833],[4,4834,4,4839],[4,4840,4,4845],[4,4846,4,4851],[4,4852,4,4857],[4,4786,4,4791],[4,4792,4,4797],[4,4798,4,4803],[4,4804,4,4809],[4,4810,4,4815],[4,4816,4,4821],[4,4750,4,4755],[4,4756,4,4761],[4,4762,4,4767],[4,4768,4,4773],[4,4774,4,4779],[4,4780,4,4785],[4,4714,4,4719],[4,4720,4,4725],[4,4726,4,4731],[4,4732,4,4737],[4,4738,4,4743],[4,4744,4,4749],[4,4678,4,4683],[4,4684,4,4689],[4,4690,4,4695],[4,4696,4,4701],[4,4702,4,4707],[4,4708,4,4713],[4,4642,4,4647],[4,4648,4,4653],[4,4654,4,4659],[4,4660,4,4665],[4,4666,4,4671],[4,4672,4,4677],[4,5038,4,5043],[4,5044,4,5049],[4,5050,4,5055],[4,5056,4,5061],[4,5062,4,5067],[4,5068,4,5073],[4,5002,4,5007],[4,5008,4,5013],[4,5014,4,5019],[4,5020,4,5025],[4,5026,4,5031],[4,5032,4,5037],[4,4966,4,4971],[4,4972,4,4977],[4,4978,4,4983],[4,4984,4,4989],[4,4990,4,4995],[4,4996,4,5001],[4,4930,4,4935],[4,4936,4,4941],[4,4942,4,4947],[4,4948,4,4953],[4,4954,4,4959],[4,4960,4,4965],[4,4894,4,4899],[4,4900,4,4905],[4,4906,4,4911],[4,4912,4,4917],[4,4918,4,4923],[4,4924,4,4929],[4,4858,4,4863],[4,4864,4,4869],[4,4870,4,4875],[4,4876,4,4881],[4,4882,4,4887],[4,4888,4,4893],[4,5254,4,5259],[4,5260,4,5265],[4,5266,4,5271],[4,5272,4,5277],[4,5278,4,5283],[4,5284,4,5289],[4,5218,4,5223],[4,5224,4,5229],[4,5230,4,5235],[4,5236,4,5241],[4,5242,4,5247],[4,5248,4,5253],[4,5182,4,5187],[4,5188,4,5193],[4,5194,4,5199],[4,5200,4,5205],[4,5206,4,5211],[4,5212,4,5217],[4,5146,4,5151],[4,5152,4,5157],[4,5158,4,5163],[4,5164,4,5169],[4,5170,4,5175],[4,5176,4,5181],[4,5110,4,5115],[4,5116,4,5121],[4,5122,4,5127],[4,5128,4,5133],[4,5134,4,5139],[4,5140,4,5145],[4,5074,4,5079],[4,5080,4,5085],[4,5086,4,5091],[4,5092,4,5097],[4,5098,4,5103],[4,5104,4,5109],[4,5470,4,5475],[4,5476,4,5481],[4,5482,4,5487],[4,5488,4,5493],[4,5494,4,5499],[4,5500,4,5505],[4,5434,4,5439],[4,5440,4,5445],[4,5446,4,5451],[4,5452,4,5457],[4,5458,4,5463],[4,5464,4,5469],[4,5398,4,5403],[4,5404,4,5409],[4,5410,4,5415],[4,5416,4,5421],[4,5422,4,5427],[4,5428,4,5433],[4,5362,4,5367],[4,5368,4,5373],[4,5374,4,5379],[4,5380,4,5385],[4,5386,4,5391],[4,5392,4,5397],[4,5326,4,5331],[4,5332,4,5337],[4,5338,4,5343],[4,5344,4,5349],[4,5350,4,5355],[4,5356,4,5361],[4,5290,4,5295],[4,5296,4,5301],[4,5302,4,5307],[4,5308,4,5313],[4,5314,4,5319],[4,5320,4,5325],[4,5686,4,5691],[4,5692,4,5697],[4,5698,4,5703],[4,5704,4,5709],[4,5710,4,5715],[4,5716,4,5721],[4,5650,4,5655],[4,5656,4,5661],[4,5662,4,5667],[4,5668,4,5673],[4,5674,4,5679],[4,5680,4,5685],[4,5614,4,5619],[4,5620,4,5625],[4,5626,4,5631],[4,5632,4,5637],[4,5638,4,5643],[4,5644,4,5649],[4,5578,4,5583],[4,5584,4,5589],[4,5590,4,5595],[4,5596,4,5601],[4,5602,4,5607],[4,5608,4,5613],[4,5542,4,5547],[4,5548,4,5553],[4,5554,4,5559],[4,5560,4,5565],[4,5566,4,5571],[4,5572,4,5577],[4,5506,4,5511],[4,5512,4,5517],[4,5518,4,5523],[4,5524,4,5529],[4,5530,4,5535],[4,5536,4,5541],[4,5902,4,5907],[4,5908,4,5913],[4,5914,4,5919],[4,5920,4,5925],[4,5926,4,5931],[4,5932,4,5937],[4,5866,4,5871],[4,5872,4,5877],[4,5878,4,5883],[4,5884,4,5889],[4,5890,4,5895],[4,5896,4,5901],[4,5830,4,5835],[4,5836,4,5841],[4,5842,4,5847],[4,5848,4,5853],[4,5854,4,5859],[4,5860,4,5865],[4,5794,4,5799],[4,5800,4,5805],[4,5806,4,5811],[4,5812,4,5817],[4,5818,4,5823],[4,5824,4,5829],[4,5758,4,5763],[4,5764,4,5769],[4,5770,4,5775],[4,5776,4,5781],[4,5782,4,5787],[4,5788,4,5793],[4,5722,4,5727],[4,5728,4,5733],[4,5734,4,5739],[4,5740,4,5745],[4,5746,4,5751],[4,5752,4,5757],[4,6118,4,6123],[4,6124,4,6129],[4,6130,4,6135],[4,6136,4,6141],[4,6142,4,6147],[4,6148,4,6153],[4,6082,4,6087],[4,6088,4,6093],[4,6094,4,6099],[4,6100,4,6105]],"merged_total":13651,"flags":["merged_cut"]}
[{"$f":"Indice!C1","v":"FRIGORIFICO CONCEPCION S.A."},null,"BG"]
[]
["NO APLICABLE "]
[]
["NOTA 10 – ACTIVOS DISPONIBLES PARA LA VENTA  "]
["Cifras expresadas en guaraníes "]
[null,"2020-06-30","2019-12-31"]
["Propiedad, planta y equipo"]
["(Detallar bienes de uso)"]
["Total",{"$f":"B9","v":0},{"$f":"C9","v":0}]
[]
["Activos intangibles"]
["(Detallar activos intangibles)"]
["Total",{"$f":"B13","v":0},{"$f":"C13","v":0}]
[]
["Inversiones"]
["(Detallar Inversiones"]
["Total",{"$f":"B17","v":0},{"$f":"C17","v":0}]
[]
["Total general",{"$f":"B10+B14+B18","v":0},{"$f":"C10+C14+C18","v":0}]

{"sheet":"Nota 11","index":15,"n_rows":12,"n_cols":6,"rows_kept":12,"cut":false,"hidden":false,"merged":[[4,0,4,3],[2,0,2,3]]}
[{"$f":"Indice!C1","v":"FRIGORIFICO CONCEPCION S.A."},null,null,null,null,"BG"]
[]
["NO APLICABLE "]
[]
["NOTA 11 – ACTIVOS INTANGIBLES"]
["Cifras expresadas en guaraníes "]
[]
["Activos intangibles","2020-06-30","2019-12-31"]
["(Detallar activos intangibles)"]
["Menos amortización acumulada","-","-"]
[]
["Total general",{"$f":"SUM(B9:B11)","v":0},{"$f":"SUM(C9:C11)","v":0}]

{"sheet":"Nota 12","index":16,"n_rows":18,"n_cols":5,"rows_kept":18,"cut":false,"hidden":false,"merged":[[2,0,2,3],[12,0,12,4]]}
[{"$f":"Indice!C1","v":"FRIGORIFICO CONCEPCION S.A."},null,null,null,"BG"]
[]
[]
[]
["NOTA 12 –  PROPIEDADES DE INVERSION "]
["Cifras expresadas en guaraníes "]
[]
[null,"2020-06-30","2019-12-31"]
["Propiedades de Inversión",46929360000,46929360000]
["Total general",{"$f":"SUM(B9:B9)","v":46929360000},{"$f":"SUM(C9:C9)","v":46929360000}]
[]
[]
["Al 30 de junio de 2020 las propiedades de inversión se componen de 4 fincas que totalizan 11.121 hectáreas ubicadas en el departamento de Alto Paraguay;"]
[]
["Finca N° 199 RR01, Título N° 207.757, Padrón 1488, dimensión 3.000 Has;"]
["Finca N° 200 RR01, Título N°. 207.759, Padrón 1487, dimensión 2.621 Has "]
["Finca N°. 201 RR01, Título N°. 207.758, Padrón 1485, dimensión 3.000 Has;"]
["Finca N° 202 RR01, Título N°. 207.768, Padrón 1486, dimensión 2.500 Has;"]

{"sheet":"Nota 13","index":17,"n_rows":22,"n_cols":5,"rows_kept":22,"cut":false,"hidden":false,"merged":[]}
[{"$f":"Indice!C1","v":"FRIGORIFICO CONCEPCION S.A."},null,"BG"]
[]
[]
["NOTA 13 – CUENTAS POR PAGAR COMERCIALES"]
["Cifras expresadas en guaranies"]
["Las cuentas por pagar comerciales se componen como sigue:"]
[]
["Corrientes","Simbología según ISO 4217","Indicación de Moneda","2020-06-30","2019-12-31"]
["Proveedores - Entidades Relacionadas","PYG",{"$f":"IFERROR(VLOOKUP(B9,'Base de Monedas'!A:B,2,0),\"\")","v":"Guaraní"},4385641421,3636471012]
["Otros proveedores del exterior","USD",{"$f":"IFERROR(VLOOKUP(B10,'Base de Monedas'!A:B,2,0),\"\")","v":"Dólar estadounidense"},6430261876,8299334540]
["Proveedores locales","PYG",{"$f":"IFERROR(VLOOKUP(B11,'Base de Monedas'!A:B,2,0),\"\")","v":"Guaraní"},82520368069,59540405167]
["(nuevas cuentas a incluir)",null,{"$f":"IFERROR(VLOOKUP(B12,'Base de Monedas'!A:B,2,0),\"\")","v":""}]
["Total cuentas a pagar por comerciales",null,null,{"$f":"SUM($D$9:D11)","v":93336271366},{"$f":"SUM($E$9:E11)","v":71476210719}]
[]
[]
[]
["No Corrientes","Simbología según ISO 4217","Indicación de Moneda","2020-06-30","2019-12-31"]
["Proveedores - Entidades Relacionadas","PYG",{"$f":"IFERROR(VLOOKUP(B18,'Base de Monedas'!A:B,2,0),\"\")","v":"Guaraní"},0,0]
["Otros proveedores del exterior","USD",{"$f":"IFERROR(VLOOKUP(B19,'Base de Monedas'!A:B,2,0),\"\")","v":"Dólar estadounidense"},0,0]
["Proveedores locales","PYG",{"$f":"IFERROR(VLOOKUP(B20,'Base de Monedas'!A:B,2,0),\"\")","v":"Guaraní"},0,0]
["(nuevas cuentas a incluir)",null,{"$f":"IFERROR(VLOOKUP(B21,'Base de Monedas'!A:B,2,0),\"\")","v":""}]
["Total cuentas a pagar por comerciales",null,null,{"$f":"SUM($D$18:D20)","v":0},{"$f":"SUM($E$18:E20)","v":0}]

{"sheet":"Nota 14","index":18,"n_rows":215,"n_cols":12,"rows_kept":215,"cut":false,"hidden":false,"merged":[[153,1,153,5],[154,1,154,6],[194,0,194,11],[155,1,155,7],[157,3,157,4],[160,1,160,6],[165,1,165,6],[175,1,175,8],[170,1,170,5],[162,1,162,9],[157,1,157,2],[159,0,159,10],[161,1,161,4],[163,1,163,5],[164,1,164,2],[164,3,164,5],[142,1,142,9],[145,1,145,8],[147,3,147,4],[152,1,152,8],[149,0,149,10],[143,1,143,4],[143,5,143,6],[144,1,144,2],[144,3,144,6],[147,1,147,2],[151,1,151,2],[150,1,150,5],[92,0,92,11],[118,0,118,11],[116,0,116,11],[124,0,124,11],[126,0,126,11],[102,0,102,11],[104,0,104,11],[106,0,106,11],[108,0,108,11],[110,0,110,11],[112,0,112,11],[94,0,94,11],[96,0,96,11],[98,0,98,11],[100,0,100,11],[114,0,114,11],[128,0,128,11],[140,1,140,5],[141,1,141,5],[137,1,137,2],[139,0,139,11],[137,3,137,4],[130,1,130,11],[132,1,132,11],[133,1,133,10],[134,1,134,7],[135,1,135,5],[131,1,131,2],[211,1,211,9],[213,0,213,9],[174,3,174,5],[176,3,176,5],[177,1,177,2],[177,3,177,5],[188,3,188,5],[179,0,179,10],[185,1,185,5],[186,1,186,2],[186,3,186,5],[187,1,187,3],[187,4,187,5],[206,3,206,5],[181,3,181,6],[201,0,206,0],[209,0,210,0],[190,0,190,10],[192,0,192,11],[209,1,210,9],[208,1,208,9],[200,1,200,9],[199,1,199,9],[196,0,196,9],[201,1,201,4],[203,3,203,5],[204,3,204,5],[205,3,205,5],[207,1,207,9],[182,1,182,4],[184,1,184,5],[183,1,183,10],[166,3,166,5],[167,1,167,2],[167,3,167,5],[171,1,171,4],[172,1,172,5],[173,1,173,5],[174,1,174,2],[169,0,169,10]]}
[{"$f":"Indice!C1","v":"FRIGORIFICO CONCEPCION S.A."},null,null,null,"BG",null,null,null,null,null,null,"BG"]
[]
[]
["NOTA 14 –  PRESTAMOS A CORTO Y LARGO PLAZO"]
[]
["(a) Equivalentes al tipo de cambio referencial de la fecha de presentacion"]
["(b) Obligaciones garantizadas por valor de guaraníes……….."]
[]
["Corrientes"]
[null,null,null,{"$f":"IFERROR(IF(Indice!B6=\"\",\"2XX2\",YEAR(Indice!B6)),\"2XX2\")","v":2020},null,null,null,null,null,{"$f":"IFERROR(YEAR(Indice!B6-365),\"2XX1\")","v":2019}]
["Préstamos de Entidades Locales","Vencimiento","Símbolo de Moneda","Moneda","Importe                            (expresada en Gs)","Tipo de Garantía",null,"Vencimiento","Símbolo de Moneda","Moneda","Importe                               (Expresada en Gs)","Tipo de Garantía"]
[null,null,null,{"$f":"IFERROR(VLOOKUP(C12,'Base de Monedas'!A:B,2,0),\"\")","v":""},null,null,null,null,null,{"$f":"IFERROR(VLOOKUP(I12,'Base de Monedas'!A:B,2,0),\"\")","v":""}]
["PRESTAMO BANCO G N B    PARAGUAY S.A                                            ","2020-09-28","USD",{"$f":"IFERROR(VLOOKUP(C13,'Base de Monedas'!A:B,2,0),\"\")","v":"Dólar estadounidense"},4194300000,"Sola Firma",null,"2020-01-28","USD",{"$f":"IFERROR(VLOOKUP(I13,'Base de Monedas'!A:B,2,0),\"\")","v":"Dólar estadounidense"},7039296000,"Sola Firma"]
["PRESTAMO BANCO BASA S.A                                                      ",0,0,0,0,0,null,"2019-12-30","USD",{"$f":"IFERROR(VLOOKUP(I14,'Base de Monedas'!A:B,2,0),\"\")","v":"Dólar estadounidense"},2908800000,"Hipotecario"]
["PRESTAMO BANCO CONTINENTAL S.A.E.C.A                                            ",0,0,0,0,0,null,"2020-09-04","USD",{"$f":"IFERROR(VLOOKUP(I15,'Base de Monedas'!A:B,2,0),\"\")","v":"Dólar estadounidense"},53028720939.120003,"Fideicomiso"]
["PRESTAMO BANCO ATLAS S.A.  (a)            ","2021-05-21","USD",{"$f":"IFERROR(VLOOKUP(C16,'Base de Monedas'!A:B,2,0),\"\")","v":"Dólar estadounidense"},2389046000,"Fideicomiso",null,"2020-03-22","USD",{"$f":"IFERROR(VLOOKUP(I16,'Base de Monedas'!A:B,2,0),\"\")","v":"Dólar estadounidense"},7039169952,"Fideicomiso"]
["PRESTAMO BANCO REGIONAL                                                         ","2021-01-25","PYG",{"$f":"IFERROR(VLOOKUP(C17,'Base de Monedas'!A:B,2,0),\"\")","v":"Guaraní"},4256460578,"Sola Firma",null,"2020-03-19","PYG",{"$f":"IFERROR(VLOOKUP(I17,'Base de Monedas'!A:B,2,0),\"\")","v":"Guaraní"},11407496139.92,"Sola Firma"]
["PRESTAMO CITIBANK                                                               ",0,0,0,0,0,null,"2019-10-25","USD",{"$f":"IFERROR(VLOOKUP(I18,'Base de Monedas'!A:B,2,0),\"\")","v":"Dólar estadounidense"},12914552746.879999,"Sola Firma"]
["PRESTAMO BANCOP S.A.                                                            ","2021-02-01","PYG",{"$f":"IFERROR(VLOOKUP(C19,'Base de Monedas'!A:B,2,0),\"\")","v":"Guaraní"},12096375938,"Hipotecario",null,"2020-02-23","USD",{"$f":"IFERROR(VLOOKUP(I19,'Base de Monedas'!A:B,2,0),\"\")","v":"Dólar estadounidense"},14271704000,"Hipotecario"]
["PRESTAMO BANCO RIO S.A.E.C.A  (b)                                 ","2020-08-29","USD",{"$f":"IFERROR(VLOOKUP(C20,'Base de Monedas'!A:B,2,0),\"\")","v":"Dólar estadounidense"},3041607602,"Hipotecario",null,"2020-04-17","USD",{"$f":"IFERROR(VLOOKUP(I20,'Base de Monedas'!A:B,2,0),\"\")","v":"Dólar estadounidense"},1937092736,"Hipotecario"]
["PRESTAMO FINEXPAR S.A.                                                          ",0,0,0,0,0,null,"2020-02-02","PYG",{"$f":"IFERROR(VLOOKUP(I21,'Base de Monedas'!A:B,2,0),\"\")","v":"Guaraní"},5168923089,"Sola Firma"]
["PRESTAMO INTERFISA                                                              ",0,0,0,0,0,null,"2020-03-25","USD",{"$f":"IFERROR(VLOOKUP(I22,'Base de Monedas'!A:B,2,0),\"\")","v":"Dólar estadounidense"},11619656518.040001,"Warrants"]
["PRESTAMO SUDAMERIS BANK                                                         ",0,0,0,0,0,null,"2020-05-13","USD",{"$f":"IFERROR(VLOOKUP(I23,'Base de Monedas'!A:B,2,0),\"\")","v":"Dólar estadounidense"},75150616091.639984,"Fideicomiso"]
["PRESTAMO BANCO NACIONAL DE FOMENTO",0,0,0,0,0,null,"2020-05-10","USD",{"$f":"IFERROR(VLOOKUP(I24,'Base de Monedas'!A:B,2,0),\"\")","v":"Dólar estadounidense"},11312000000,"Hipotecario"]
["SOBREGIROS BANCARIOS",null,null,null,null,null,null,null,"USD",{"$f":"IFERROR(VLOOKUP(I25,'[1]Base de Monedas'!A:B,2,0),\"\")","v":"Dólar estadounidense"},30750329815]
[null,null,null,{"$f":"IFERROR(VLOOKUP(C26,'Base de Monedas'!A:B,2,0),\"\")","v":""},null,null,null,null,null,{"$f":"IFERROR(VLOOKUP(I26,'Base de Monedas'!A:B,2,0),\"\")","v":""}]
["Deudas bursátiles",null,null,{"$f":"IFERROR(VLOOKUP(C27,'Base de Monedas'!A:B,2,0),\"\")","v":""},null,null,null,null,null,{"$f":"IFERROR(VLOOKUP(I27,'Base de Monedas'!A:B,2,0),\"\")","v":""}]
["PYFRI01F9774","2020-07-03","PYG",{"$f":"IFERROR(VLOOKUP(C28,'Base de Monedas'!A:B,2,0),\"\")","v":"Guaraní"},6023186632,"Sin Garantía",null,"2020-07-03","PYG","Guaraní",6023186632,"Sin Garantía"]
["PYFRI01F9766","2020-07-03","USD",{"$f":"IFERROR(VLOOKUP(C29,'Base de Monedas'!A:B,2,0),\"\")","v":"Dólar estadounidense"},7101806014.6000004,"Sin Garantía",null,"2020-07-03","USD","Dólar estadounidense",{"$f":"6731095906-784","v":6731095122},"Sin Garantía"]
["PYFRI02F0160","2020-09-26","USD",{"$f":"IFERROR(VLOOKUP(C30,'Base de Monedas'!A:B,2,0),\"\")","v":"Dólar estadounidense"},7120439073,"Sin Garantía",null,"2020-09-26","USD","Dólar estadounidense",0,"Sin Garantía"]
["PYFRI02F0152","2020-09-26","PYG",{"$f":"IFERROR(VLOOKUP(C31,'Base de Monedas'!A:B,2,0),\"\")","v":"Guaraní"},5984609650,"Sin Garantía",null,"2020-09-26","PYG","Guaraní",0,"Sin Garantía"]
["(Incluir programas de forma individual)",null,null,{"$f":"IFERROR(VLOOKUP(C32,'Base de Monedas'!A:B,2,0),\"\")","v":""},null,null,null,null,null,{"$f":"IFERROR(VLOOKUP(I32,'Base de Monedas'!A:B,2,0),\"\")","v":""}]
["Préstamos de Entidades en el Exterior",null,null,{"$f":"IFERROR(VLOOKUP(C33,'Base de Monedas'!A:B,2,0),\"\")","v":""},null,null,null,null,null,{"$f":"IFERROR(VLOOKUP(I33,'Base de Monedas'!A:B,2,0),\"\")","v":""}]
["Nombre de la entidad financiera",null,null,{"$f":"IFERROR(VLOOKUP(C34,'Base de Monedas'!A:B,2,0),\"\")","v":""},null,null,null,null,null,{"$f":"IFERROR(VLOOKUP(I34,'Base de Monedas'!A:B,2,0),\"\")","v":""}]
["PRESTAMO MULTIBANK - PANAMA  (c)                                          ","2021-04-25","USD",{"$f":"IFERROR(VLOOKUP(C35,'Base de Monedas'!A:B,2,0),\"\")","v":"Dólar estadounidense"},13012310115.200001,"Fideicomiso",null,"2020-12-25","USD",{"$f":"IFERROR(VLOOKUP(I35,'Base de Monedas'!A:B,2,0),\"\")","v":"Dólar estadounidense"},18002252928,"Fideicomiso"]
[null,null,null,{"$f":"IFERROR(VLOOKUP(C36,'Base de Monedas'!A:B,2,0),\"\")","v":""},null,null,null,null,null,{"$f":"IFERROR(VLOOKUP(I36,'Base de Monedas'!A:B,2,0),\"\")","v":""}]
["Deudas bursátiles",null,null,{"$f":"IFERROR(VLOOKUP(C37,'Base de Monedas'!A:B,2,0),\"\")","v":""},null,null,null,null,null,{"$f":"IFERROR(VLOOKUP(I37,'Base de Monedas'!A:B,2,0),\"\")","v":""}]
["Senior Secured Global Notes","2025-01-29","USD",{"$f":"IFERROR(VLOOKUP(C38,'Base de Monedas'!A:B,2,0),\"\")","v":"Dólar estadounidense"},0,"Fiduciaria",null,"-","-","-","-","-"]
["Intereses préstamos entidades financieras a pagar",null,null,{"$f":"IFERROR(VLOOKUP(C39,'Base de Monedas'!A:B,2,0),\"\")","v":""},null,null,null,null,null,{"$f":"IFERROR(VLOOKUP(I39,'Base de Monedas'!A:B,2,0),\"\")","v":""}]
["Intereses a pagar Locales","2021-05-21","USD",{"$f":"IFERROR(VLOOKUP(C40,'Base de Monedas'!A:B,2,0),\"\")","v":"Dólar estadounidense"},1204583300.8,null,null,"2020-09-04","USD",{"$f":"IFERROR(VLOOKUP(I40,'Base de Monedas'!A:B,2,0),\"\")","v":"Dólar estadounidense"},8016831937.6400013]
["Intereses a pagar en el Exterior","2021-04-25","USD",{"$f":"IFERROR(VLOOKUP(C41,'Base de Monedas'!A:B,2,0),\"\")","v":"Dólar estadounidense"},455442532.59999996,null,null,"2020-12-25","USD",{"$f":"IFERROR(VLOOKUP(I41,'Base de Monedas'!A:B,2,0),\"\")","v":"Dólar estadounidense"},825168384]
["(-) Intereses a Devengar Locales","2021-05-21","USD",{"$f":"IFERROR(VLOOKUP(C42,'Base de Monedas'!A:B,2,0),\"\")","v":"Dólar estadounidense"},-8104940982.3199997,null,null,"2020-09-04","USD",{"$f":"IFERROR(VLOOKUP(I42,'Base de Monedas'!A:B,2,0),\"\")","v":"Dólar estadounidense"},-24199113441.9049]
["(-) Intereses a Devengar en el Exterior","2021-04-25","USD",{"$f":"IFERROR(VLOOKUP(C43,'Base de Monedas'!A:B,2,0),\"\")","v":"Dólar estadounidense"},-439753335.68000001,null,null,"2020-12-25","USD",{"$f":"IFERROR(VLOOKUP(I43,'Base de Monedas'!A:B,2,0),\"\")","v":"Dólar estadounidense"},-600852821.03225803]
[]
["Intereses deudas bursátiles a pagar",null,null,{"$f":"IFERROR(VLOOKUP(C45,'Base de Monedas'!A:B,2,0),\"\")","v":""}]
["Intereses a pagar Locales","2020-09-26","PYG",{"$f":"IFERROR(VLOOKUP(C46,'Base de Monedas'!A:B,2,0),\"\")","v":"Guaraní"},1773958630,"Sin Garantía",null,"2019-03-31","PYG",null,856117462.07999992,"Sin Garantía"]
["Intereses a pagar en el Exterior","2020-07-29","USD",{"$f":"IFERROR(VLOOKUP(C47,'Base de Monedas'!A:B,2,0),\"\")","v":"Dólar estadounidense"},0,"Fiduciaria",null,"-",null,null,0]
["(-) Intereses a Devengar Locales","2020-09-26","PYG",{"$f":"IFERROR(VLOOKUP(C48,'Base de Monedas'!A:B,2,0),\"\")","v":"Guaraní"},-308226457,"Sin Garantía",null,"2019-03-31","PYG",null,-6261784721,"Sin Garantía"]
["(-) Intereses a Devengar en el Exterior","2020-07-29","USD",{"$f":"IFERROR(VLOOKUP(C49,'Base de Monedas'!A:B,2,0),\"\")","v":"Dólar estadounidense"},0,"Fiduciaria",null,"-",null,null,0]
["Total",null,null,{"$f":"IFERROR(VLOOKUP(C50,'Base de Monedas'!A:B,2,0),\"\")","v":""},{"$f":"SUM($E$12:E49)","v":59801205291.200005},null,null,null,null,null,{"$f":"SUM($K$12:K49)","v":253941259509.38281}]
[]
[]
["No Corrientes"]
[null,"20X2",null,{"$f":"IFERROR(YEAR(Indice!B6),\"2XX2\")","v":2020},null,null,null,null,null,{"$f":"IFERROR(YEAR(Indice!B6-365),\"2XX1\")","v":2019}]
["Préstamos de Entidades Locales","Vencimiento","Símbolo de Moneda","Moneda","Importe (miles de Gs)","Tipo de garantía",null,"Vencimiento","Símbolo de Moneda","Moneda","Importe (miles de Gs)","Tipo de Garantía"]
["Nombre de la entidad financiera",null,null,{"$f":"IFERROR(VLOOKUP(C56,'Base de Monedas'!A:B,2,0),\"\")","v":""},null,null,null,null,null,{"$f":"IFERROR(VLOOKUP(I56,'Base de Monedas'!A:B,2,0),\"\")","v":""}]
["PRESTAMO BANCO SUDAMERIS - LP                                                   ",null,null,null,0,null,null,"2026-10-01","USD",{"$f":"IFERROR(VLOOKUP(I57,'Base de Monedas'!A:B,2,0),\"\")","v":"Dólar estadounidense"},73786560000,"Fideicomiso"]
["PRESTAMO  BANCO CONTINENTAL S.A.E.C.A. - LP                                     ",null,null,null,0,null,null,"2021-10-19","USD",{"$f":"IFERROR(VLOOKUP(I58,'Base de Monedas'!A:B,2,0),\"\")","v":"Dólar estadounidense"},2417536000,"Fideicomiso"]
["PRESTAMO BANCO BASA S.A  LP                                                  ",null,null,null,0,null,null,"2024-03-18","USD",{"$f":"IFERROR(VLOOKUP(I59,'Base de Monedas'!A:B,2,0),\"\")","v":"Dólar estadounidense"},23528960000,"Hipotecario"]
["PRESTAMO BANCO ATLAS S.A. LP                                                 ","2023-07-21","USD",{"$f":"IFERROR(VLOOKUP(C60,'Base de Monedas'!A:B,2,0),\"\")","v":"Dólar estadounidense"},11171215788,"Fideicomiso",null,"2023-07-21","USD",{"$f":"IFERROR(VLOOKUP(I60,'Base de Monedas'!A:B,2,0),\"\")","v":"Dólar estadounidense"},14081360789.760002,"Fideicomiso"]
["PRESTAMO BANCO RIO (b)                                             ",null,null,null,null,null,null,"2021-05-24","USD",{"$f":"IFERROR(VLOOKUP(I61,'Base de Monedas'!A:B,2,0),\"\")","v":"Dólar estadounidense"},3643021121,"Hipotecario"]
["PRESTAMO BANCO NACIONAL DE FOMENTO LP","2020-11-24","USD",{"$f":"IFERROR(VLOOKUP(C62,'Base de Monedas'!A:B,2,0),\"\")","v":"Dólar estadounidense"},56691250000,"Hipotecario",null,"2024-11-10","USD",{"$f":"IFERROR(VLOOKUP(I62,'Base de Monedas'!A:B,2,0),\"\")","v":"Dólar estadounidense"},52196800000,"Hipotecario"]
["PRESTAMO VISION BANCO LP","2021-02-10","USD",{"$f":"IFERROR(VLOOKUP(C63,'Base de Monedas'!A:B,2,0),\"\")","v":"Dólar estadounidense"},683569223,"Hipotecario",null,"2022-08-10","PYG",{"$f":"IFERROR(VLOOKUP(I63,'Base de Monedas'!A:B,2,0),\"\")","v":"Guaraní"},887305573,"Sola Firma"]
["(incluir otras entidades)",null,null,{"$f":"IFERROR(VLOOKUP(C64,'Base de Monedas'!A:B,2,0),\"\")","v":""},null,null,null,null,null,{"$f":"IFERROR(VLOOKUP(I64,'Base de Monedas'!A:B,2,0),\"\")","v":""}]
["Deudas bursátiles",null,null,{"$f":"IFERROR(VLOOKUP(C65,'Base de Monedas'!A:B,2,0),\"\")","v":""},null,null,null,null,null,{"$f":"IFERROR(VLOOKUP(I65,'Base de Monedas'!A:B,2,0),\"\")","v":""}]
["SERIE03F5820","2021-01-14","PYG",{"$f":"IFERROR(VLOOKUP(C66,'Base de Monedas'!A:B,2,0),\"\")","v":"Guaraní"},0,"Sin garantia",null,"2021-01-14","PYG","Guaraní",4000000000,"Sin Garantía"]
["SERIE06F6007","2021-01-28","PYG",{"$f":"IFERROR(VLOOKUP(C67,'Base de Monedas'!A:B,2,0),\"\")","v":"Guaraní"},0,"Sin garantia",null,"2021-01-28","PYG","Guaraní",4000000000,"Sin Garantía"]
["SERIE08F6377","2021-03-30","PYG",{"$f":"IFERROR(VLOOKUP(C68,'Base de Monedas'!A:B,2,0),\"\")","v":"Guaraní"},0,"Sin garantia",null,"2021-03-30","PYG","Guaraní",5500000000,"Sin Garantía"]
["SERIE03F5861","2021-01-14","USD",{"$f":"IFERROR(VLOOKUP(C69,'Base de Monedas'!A:B,2,0),\"\")","v":"Dólar estadounidense"},0,"Sin garantia",null,"2021-01-14","USD","Dólar estadounidense",6464000000,"Sin Garantía"]
["SERIE04F5878","2022-01-13","USD",{"$f":"IFERROR(VLOOKUP(C70,'Base de Monedas'!A:B,2,0),\"\")","v":"Dólar estadounidense"},0,"Sin garantia",null,"2022-01-13","USD","Dólar estadounidense",6464000000,"Sin Garantía"]
["SERIE07F6030","2021-01-28","USD",{"$f":"IFERROR(VLOOKUP(C71,'Base de Monedas'!A:B,2,0),\"\")","v":"Dólar estadounidense"},0,"Sin garantia",null,"2021-01-28","USD","Dólar estadounidense",6464000000,"Sin Garantía"]
["SERIE08F6047","2022-01-27","USD",{"$f":"IFERROR(VLOOKUP(C72,'Base de Monedas'!A:B,2,0),\"\")","v":"Dólar estadounidense"},0,"Sin garantia",null,"2022-01-27","USD","Dólar estadounidense",6464000000,"Sin Garantía"]
["SERIE11F7362","2022-05-26","USD",{"$f":"IFERROR(VLOOKUP(C73,'Base de Monedas'!A:B,2,0),\"\")","v":"Dólar estadounidense"},0,"Sin garantia",null,"2022-05-26","USD","Dólar estadounidense",4848000000,"Sin Garantía"]
["Préstamos de Entidades en el Exterior",null,null,{"$f":"IFERROR(VLOOKUP(C74,'Base de Monedas'!A:B,2,0),\"\")","v":""},null,null,null,null,null,{"$f":"IFERROR(VLOOKUP(I74,'Base de Monedas'!A:B,2,0),\"\")","v":""}]
["Nombre de la entidad financiera",null,null,{"$f":"IFERROR(VLOOKUP(C75,'Base de Monedas'!A:B,2,0),\"\")","v":""},null,null,null,null,null,{"$f":"IFERROR(VLOOKUP(I75,'Base de Monedas'!A:B,2,0),\"\")","v":""}]
["Nombre de la entidad financiera",null,null,{"$f":"IFERROR(VLOOKUP(C76,'Base de Monedas'!A:B,2,0),\"\")","v":""},null,null,null,null,null,{"$f":"IFERROR(VLOOKUP(I76,'Base de Monedas'!A:B,2,0),\"\")","v":""}]
["(incluir otras entidades)",null,null,{"$f":"IFERROR(VLOOKUP(C77,'Base de Monedas'!A:B,2,0),\"\")","v":""},null,null,null,null,null,{"$f":"IFERROR(VLOOKUP(I77,'Base de Monedas'!A:B,2,0),\"\")","v":""}]
["Deudas bursátiles",null,null,{"$f":"IFERROR(VLOOKUP(C78,'Base de Monedas'!A:B,2,0),\"\")","v":""},null,null,null,null,null,{"$f":"IFERROR(VLOOKUP(I78,'Base de Monedas'!A:B,2,0),\"\")","v":""}]
["Senior Secured Global Notes","2025-01-29","USD",{"$f":"IFERROR(VLOOKUP(C79,'Base de Monedas'!A:B,2,0),\"\")","v":"Dólar estadounidense"},682000000000,"Fiduciaria",null,"-","-","","-","-"]
["Intereses préstamos entidades financieras a pagar",null,null,{"$f":"IFERROR(VLOOKUP(C80,'Base de Monedas'!A:B,2,0),\"\")","v":""},null,null,null,null,null,{"$f":"IFERROR(VLOOKUP(I80,'Base de Monedas'!A:B,2,0),\"\")","v":""}]
["Intereses a pagar Locales","2023-07-21","USD",{"$f":"IFERROR(VLOOKUP(C81,'Base de Monedas'!A:B,2,0),\"\")","v":"Dólar estadounidense"},10990961070,null,null,"2026-10-01","USD",{"$f":"IFERROR(VLOOKUP(I81,'Base de Monedas'!A:B,2,0),\"\")","v":"Dólar estadounidense"},41140889671.959999]
["Intereses a pagar en el Exterior",null,null,null,null,null,null,null,null,{"$f":"IFERROR(VLOOKUP(I82,'Base de Monedas'!A:B,2,0),\"\")","v":""}]
["(-) Intereses a Devengar Locales","2023-07-21","USD",{"$f":"IFERROR(VLOOKUP(C83,'Base de Monedas'!A:B,2,0),\"\")","v":"Dólar estadounidense"},-10003602453,null,null,"2026-10-01","USD",{"$f":"IFERROR(VLOOKUP(I83,'Base de Monedas'!A:B,2,0),\"\")","v":"Dólar estadounidense"},-38100529684.774101]
["(-) Intereses a Devengar en el Exterior"]
[]
["Intereses deudas bursátiles a pagar",null,null,{"$f":"IFERROR(VLOOKUP(C86,'Base de Monedas'!A:B,2,0),\"\")","v":""},null,null,null,null,null,{"$f":"IFERROR(VLOOKUP(I86,'Base de Monedas'!A:B,2,0),\"\")","v":""}]
["Intereses a pagar Locales","-",null,null,null,"-",null,"2019-03-31","PYG",{"$f":"IFERROR(VLOOKUP(I87,'Base de Monedas'!A:B,2,0),\"\")","v":"Guaraní"},{"$f":"3014887342.46575+328","v":3014887670.4657502},"Sin Garantía"]
["Intereses a pagar en el Exterior","2025-01-29","USD",{"$f":"IFERROR(VLOOKUP(C88,'Base de Monedas'!A:B,2,0),\"\")","v":"Dólar estadounidense"},227191250000,"Fiduciaria",null,"-",null,null,"-","-"]
["(-) Intereses a Devengar Locales","-",null,{"$f":"IFERROR(VLOOKUP(C89,'Base de Monedas'!A:B,2,0),\"\")","v":""},"-","-",null,"2019-03-31","PYG",{"$f":"IFERROR(VLOOKUP(I89,'Base de Monedas'!A:B,2,0),\"\")","v":"Guaraní"},-3006344438,"Sin Garantía"]
["(-) Intereses a Devengar en el Exterior","2025-01-29","USD",{"$f":"IFERROR(VLOOKUP(C90,'Base de Monedas'!A:B,2,0),\"\")","v":"Dólar estadounidense"},-226325125000,"Fiduciaria",null,"-",null,null,"-","-"]
["Total",null,null,{"$f":"IFERROR(VLOOKUP(C91,'Base de Monedas'!A:B,2,0),\"\")","v":""},{"$f":"SUM($E$56:E90)","v":752399518628},null,null,null,null,{"$f":"IFERROR(VLOOKUP(I91,'Base de Monedas'!A:B,2,0),\"\")","v":""},{"$f":"SUM(K57:K90)","v":217794446703.41165}]
[null,null,null,null,null,null,null,null,null,{"$f":"IFERROR(VLOOKUP(I92,'Base de Monedas'!H:I,2,0),\"\")","v":""}]
["14. 1 - DEUDAS FINANCIERAS"]
[]
["Durante el segundo trimestre del 2020, los intereses pactados en guaraníes se ubican entre el 10% y 12% anual y los intereses en dólares estadounidenses entre el 6,50% y el 10% anual."]
[]
["a)    En fecha 22 de mayo de 2017 se firmó la Escritura No. 422 ante el escribano Luis Enrique Peroni Giralt, mediante la cual se procedió a otorgar en garantía de operaciones bancarias los bienes inmuebles conformados por Fincas N°R01 189 y N°R01 182 del Distrito de Fuerte Olimpo de la Sociedad y la concesión de una línea de crédito de hasta dólares un millón quinientos cincuenta mil (US$ 1.550.000.-)."]
[]
["AGROGANADERA CONCEPCION S.A. autorizando a la Sociedad FRIGORÍFICO CONCEPCIÓN S.A. a constituir un Patrimonio Autónomo dentro de un “Contrato de Fideicomiso de Garantía entre AGROGANADERA CONCEPCION S.A. Fideicomitente – Deudora, FRIGORIFICO CONCEPCION S.A. como Deudor, el Sr. JAIR ANTONIO DE LIMA como Deudor, Banco Atlas S.A. como beneficiario y FINLATINA SOCIEDAD ANONIMA DE FINANZAS como fiduciaria."]
[]
["Posteriormente la sociedad procedió a realizar la modificación por aumento de línea de crédito y del plazo del Contrato de Fideicomiso, según Escritura Pública No. 589 de fecha 29 de mayo de 2018, pasada ante el escribano Luis Enrique Peroni Giralt, mediante la cual la nueva línea de crédito reemplaza a la anterior y asciende a la suma de US$. 5.000.000.- "]
[]
["La duración del Contrato de Fideicomiso de Garantía, contenido en la escritura No. 589 de fecha 29 de mayo de 2018 es de 7 años contados a partir de la firma de la presente adenda. "]
[]
["b)    El Acta de directorio Nº 99, de la sesión Frigorífico Concepción S.A., Concepción Palace Hotel S.A celebrada el 02/09/2010 de Frigorífico Concepción S.A. autorizó la compra de un inmueble con sus instalaciones, mejoras y equipamientos destinados a Matadero, ubicado en la ciudad de Encarnación, al valor total de US$. 1.200.000.-, de propiedad del Sr. Lulio Rolando Rojas Pagani y de la Sra. Cristina Maria Isabel Garcia de Rojas, con quienes se celebró un Contrato de Compra – Venta, en fecha 15/09/2010, en el cual se pactaron las condiciones particulares de la operación. "]
[]
["Parte de la operación fue financiada con intervención bancaria, para lo cual el día 28/09/2010, según Acta de Directorio Nº 100, la Sociedad resolvió solicitar al Banco Itapúa S.A.E.C.A. un crédito Hipotecario y Prendario para financiar la adquisición mencionada.  A tal efecto y ante la Escribana María Angélica Rojas Duarte de Paredes, fue formalizada la transacción, según Escritura Pública Nº 42 de fecha 18/10/2010, en la cual se perfeccionó la transferencia, con garantía hipotecaria y prendaria de las maquinarias existentes en la planta y la concesión de una línea de crédito de hasta dólares seiscientos mil (US$. 600.000.-). En el marco de la línea de crédito concedida por el Banco Itapúa S.A.E.C.A. fue desembolsado un crédito de dólares quinientos ocho mil (US$. 508.000)."]
[]
["c)    En fecha 30 de setiembre del 2015 se firmó la Escritura No. 828 ante el escribano Luis Enrique Peroni Giralt, mediante la cual se procedió a otorgar en garantía de operaciones bancarias los bienes inmuebles conformados por Fincas No.2.275, No.102, No.3.446 y No.3.445 de la Sociedad. "]
[]
["      CONCEPCIÓN PALACE HOTEL S.A. autorizando a la Sociedad FRIGORÍFICO CONCEPCIÓN S.A. a constituir un Patrimonio Autónomo dentro de un “Contrato de Fideicomiso de Garantía entre Frigorífico Concepción S.A., Concepción Palace Hotel S.A. (fideicomitentes) Banco Atlas S.A. (fiduciario) y Multibank INC. –PANAMA (beneficiario)”."]
[]
["Posteriormente la sociedad procedió a realizar la modificación del Contrato de Fideicomiso de Garantía, según Escritura Pública No. 1167, de fecha 14 de diciembre del 2017, pasada ante el escribano Luis Enrique Peroni Giralt, mediante la cual la nueva línea de crédito reemplaza a la anterior y asciende a la suma de US$. 4.500.000.- o su equivalente en moneda local, más los intereses, comisiones y gastos correspondientes a las operaciones crediticias celebradas con el beneficiario."]
[]
["La duración del Contrato de Fideicomiso de Garantía, contenido en la escritura No. 828 del 30/09/2015 tiene una duración total de 5 años, la cual permanece invariable en las adendas posteriores. "]
[]
["14.2 AVALES OBTENIDOS "]
[]
["Al 30 de junio de 2020, Frigorífico Concepción S.A. bajo las líneas de crédito autorizadas con Bancos del sistema financiero, ha obtenido los avales descrito a continuación, destinados a garantizar las devoluciones de IVA CREDITO EXPORTADOR en proceso ante la Subsecretaría de Estado de Tributación – Ministerio de Hacienda; "]
[]
["Período de recupero de crédito ","Banco","Valor Garantía"]
["Mes de diciembre 2019","Banco Sudameris S.A.E.C.A.",928662062]
["Total",null,928662062]
[]
["14.3  BONOS BURSATILES - LOCALES "]
[]
["La Sociedad obtuvo en fecha 10 de junio del 2.010, según Resolución 1.259/10, su inscripción como “Sociedad Emisora de Títulos Valores de oferta pública que no sean acciones, de acuerdo a lo dispuesto en la Ley 1.284/98” ante la Comisión Nacional de Valores, tras haber cumplido con todos los requerimientos legales exigidos por las disposiciones reglamentarias vigentes. "]
[]
["a)  De acuerdo a la resolución N° 1932/19, la Bolsa de Valores y Productos de Asunción S.A. procedió a Registrar la Emisión de Bonos Bursátiles de Corto Plazo, realizada por Frigorífico Concepción S.A., cuyas características son las descriptas en el Acta de Directorio Nº 371 de fecha 17 de setiembre de 2019, y se sintetizan a continuación:"]
[]
["Valor Nominal de la Emisión:","USD. 2.200.000 (Dólares americanos dos millones doscientos mil).-"]
["Moneda:","Dólares estadounidenses."]
["Serie: ","Serie 1 (Uno) USD. 1.100.000.- (Dólares americanos un millón cien mil)."]
["Tipo de instrumento: ","Títulos globales. Ajustándose a los términos."]
["Corte mínimo de los Bonos: ","USD. 1.000 (Dólares americanos Un mil con 00/100)."]
["Tasa de interés: ","Cupón cero, estos títulos serán negociados por precio."]
["Plazo de Vencimiento: ","270 días"]
["Calificación de riesgo:","py NIVEL 3 (N-3)"]
[]
["b)  De acuerdo a la resolución N° 1931/19, la Bolsa de Valores y Productos de Asunción S.A. procedió a Registrar la Emisión de Bonos Bursátiles de Corto Plazo, realizada por Frigorífico Concepción S.A., cuyas características son las descriptas en el Acta de Directorio Nº 371 de fecha 17 de setiembre de 2019, y se sintetizan a continuación:"]
["Valor Nominal de la Emisión:","G. 13.000.000.000 (Guaraníes Trece mil millones).-"]
["Moneda:","Guaraníes"]
["Serie: ","Serie 1 (Uno) G.6.500.000.000.- (Guaraníes Seis mil quinientos millones)."]
["Tipo de instrumento: ","Títulos globales. Ajustándose a los términos."]
[" Corte mínimo de los Bonos: ","G. 1.000.000.- (Guaraníes Un millón)"]
[" Tasa de interés: ","Cupón Cero, estos títulos serán negociados por precio."]
[" Plazo de Vencimiento: ","270 días."]
[" Calificación de riesgo:","py NIVEL 3 (N-3)"]
[]
["c)  De acuerdo a la resolución N° 1991/20 la Bolsa de Valores y Productos de Asunción S.A. procedió a Registrar la Emisión de Bonos Bursátiles de Corto Plazo, realizada por Frigorífico Concepción S.A., cuyas características son las descriptas en el Acta de Directorio Nº 371 de fecha 17 de setiembre de 2019, y se sintetizan a continuación:"]
["Valor Nominal de la Emisión:","USD. 2.200.000 (Dólares americanos dos millones doscientos mil).-"]
["Moneda:","Dólares estadounidenses."]
["Serie: ","Serie 2 (Dos) USD. 1.100.000.- (Dólares americanos un millón cien mil)."]
["Tipo de instrumento: ","Títulos globales. Ajustándose a los términos."]
["Corte mínimo de los Bonos: ","USD. 1.000 (Dólares americanos Un mil con 00/100)."]
["Tasa de interés: ","Cupón cero, estos títulos serán negociados por precio."]
["Plazo de Vencimiento: ","270 días"]
["Calificación de riesgo:","py NIVEL 3 (N-3)"]
[]
["d)  De acuerdo a la resolución N° 1990/20, la Bolsa de Valores y Productos de Asunción S.A. procedió a Registrar la Emisión de Bonos Bursátiles de Corto Plazo, realizada por Frigorífico Concepción S.A., cuyas características son las descriptas en el Acta de Directorio Nº 371 de fecha 17 de setiembre de 2019, y se sintetizan a continuación:"]
["Valor Nominal de la Emisión:","G. 13.000.000.000 (Guaraníes Trece mil millones).-"]
["Moneda:","Guaraníes"]
["Serie: ","Serie 2 (Dos) G.6.500.000.000.- (Guaraníes Seis mil quinientos millones)."]
["Tipo de instrumento: ","Títulos globales. Ajustándose a los términos."]
[" Corte mínimo de los Bonos: ","G. 1.000.000.- (Guaraníes Un millón)"]
[" Tasa de interés: ","Cupón Cero, estos títulos serán negociados por precio."]
[" Plazo de Vencimiento: ","270 días."]
["Calificación de riesgo:","py NIVEL 3 (N-3)"]
[]
["e)  De acuerdo a la resolución N°2059/20, la Bolsa de Valores y Productos de Asunción S.A. procedió a Registrar la Emisión de Bonos Bursátiles de Corto Plazo, realizada por Frigorífico Concepción S.A., cuyas características son las descriptas en el Acta de Directorio Nº 389 de fecha 11 de mayo de 2019, y se sintetizan a continuación:"]
["Valor Nominal de la Emisión:","G. 10.000.000.000 (Guaraníes Diez mil millones).-"]
["Moneda:","Guaraníes"]
["Serie: ","Serie 1 (Uno) G.5.000.000.000.- (Guaraníes Cinco mil millones)."]
["Tipo de instrumento: ","Títulos globales. Ajustándose a los términos."]
[" Corte mínimo de los Bonos: ","G. 1.000.000.- (Guaraníes Un millón)"]
[" Tasa de interés: ","Cupón Cero, estos títulos serán negociados por precio."]
[" Plazo de Vencimiento: ","360 días."]
["Calificación de riesgo:","py NIVEL 3 (N-3)"]
[]
["f)  De acuerdo a la resolución N°2059/20, la Bolsa de Valores y Productos de Asunción S.A. procedió a Registrar la Emisión de Bonos Bursátiles de Corto Plazo, realizada por Frigorífico Concepción S.A., cuyas características son las descriptas en el Acta de Directorio Nº 389 de fecha 11 de mayo de 2019, y se sintetizan a continuación:"]
[]
["Valor Nominal de la Emisión:                      ","USD. 1.500.000 (Dólares americanos Un millon quinientos mil).-"]
["Moneda:","Dólares estadounidenses."]
["Serie: ","Serie 1 (Uno) USD 1.500.000 -(Dólares americanos Un millon quinientos mil).-"]
["Tipo de instrumento: ","Títulos globales. Ajustándose a los términos."]
[" Corte mínimo de los Bonos: ","USD. 1.000 ( Dólares americanos Un mil con 00/100)"]
[" Tasa de interés: ","Cupón Cero, estos títulos serán negociados por precio."]
[" Plazo de Vencimiento: ","360 días."]
["Calificación de riesgo:","py NIVEL 3 (N-3)"]
[]
["Las emisiones de Bonos Bursátiles a corto plazo mencionados en los capítulos precedentes tienen establecidos como Destino de los fondos: la captación de capital operativo. La sociedad logró colocar el 100% de los bonos emitidos, con lo cual queda demostrada la confianza que FRIGORIFICO CONCEPCIÓN S.A. obtuvo una vez más del mercado bursátil."]
[]
["14.4  BONOS BURSATILES - INTERNACIONALES"]
[]
["El 29 de enero de 2020 FRIGORIFICO CONCEPCION S.A. ha realizado una emisión de bonos internacionales, bajo la coordinación general de Oppenheimer & Co., como agente de colocación y registrados en la Bolsa de Luxemburgo, según el siguiente detalle: "]
[]
["Mercado Internacional "]
["Emisor","FRIGORIFICO CONCEPCION S.A."]
["Tipo de Bonos","Senior Secured Global Notes"]
["Modalidad","Bonos emitidos bajo la Rule 144ª/Reg. S "]
["Principal en USD","USD 100,000,000.- Cien millones de dólares americanos."]
["Vencimiento del Capital","En cuatro pagos iguales en las siguientes fechas: "]
[]
[null,"-          29 de Julio de 2023,"]
[null,"-          29 de Enero de 2024,"]
[null,"-          29 de Julio de 2024 y"]
[null,"-          29 de Enero de 2025."]
["Tasa de Interés","10,25% anual.  "]
["Vencimiento de los Intereses","Los pagos de intereses serán semestrales a ser pagados cada 29 de Enero y cada 29 de Julio, contando a partir del 29 de Enero de 2020."]
["Destino del producido de los Bonos Internacionales","Pago de créditos con entidades bancarias y rescate anticipado de bonos locales, vigentes a la fecha de esta emisión. "]
[]
["Garantía","Los bonos están garantizados a través de un Contrato de fideicomiso de administración y garantía,  celebrado entre Frigorífico Concepción S.A. (fideicomitente), Financiera Finexpar S.A.E.C.A. (fiduciaria) y Wilmington Trust, National Association como fiduciario internacional representante de los  tenedores de bonos."]
[]
["Cabe mencionar que esta primera emisión de bonos internacionales fue totalmente colocada en el mercado internacional, constituyéndonos en la primera empresa comercial paraguaya del segmento alimenticio que realiza este tipo de transacciones a nivel global, sentando en tal sentido, un importante precedente."]
["..//.."]

{"sheet":"Nota 15","index":19,"n_rows":15,"n_cols":4,"rows_kept":15,"cut":false,"hidden":false,"merged":[]}
[{"$f":"Indice!C1","v":"FRIGORIFICO CONCEPCION S.A."},null,null,"BG"]
[]
[]
[]
["NOTA 15 – PORCION CORRIENTE DE LA DEUDA A LARGO PLAZO"]
["Cifras expresadas en guaraníes"]
[]
["Porción corriente de la deuda a largo plazo","2020-06-30","2019-12-31"]
["Cuentas por pagar comerciales",0,0]
["Préstamos bancarios",27137090140,100024232342.40002]
["Bonos bursátiles",14019813087,77644000000]
["Intereses bancarios a pagar",7624922278,26658643500.840004]
["Intereses bursatiles a pagar en el exterior",71115186546,7734477238.356164]
["(-) Intereses a Devengar en el Exterior",-41454019633,0]
["Total general",{"$f":"SUM($B$9:B14)","v":78442992418},{"$f":"SUM($C$9:C14)","v":212061353081.59619}]

{"sheet":"Nota 16","index":20,"n_rows":12,"n_cols":6,"rows_kept":12,"cut":false,"hidden":false,"merged":[]}
[{"$f":"Indice!C1","v":"FRIGORIFICO CONCEPCION S.A."},null,null,null,null,"BG"]
[]
[]
["NOTA 16 – REMUNERACIONES Y CARGAS SOCIALES A PAGAR"]
["Cifras expresadas en guaraníes"]
[]
["Remuneraciones y cargas sociales a pagar","2020-06-30","2019-12-31"]
["Sueldo y otras remuneraciones a pagar","-","-"]
["Aportes y retenciones a pagar",{"$f":"1073169007+2265262771","v":3338431778},1002922187]
["Remuneraciones al personal superior a pagar","-","-"]
["(Indicar otras cuentas)"]
["Total",{"$f":"SUM($B$8:B11)","v":3338431778},{"$f":"SUM($C$8:C11)","v":1002922187}]

{"sheet":"Nota 17","index":21,"n_rows":12,"n_cols":7,"rows_kept":12,"cut":false,"hidden":false,"merged":[]}
[{"$f":"Indice!C1","v":"FRIGORIFICO CONCEPCION S.A."},null,null,null,null,null,"BG"]
[]
[]
[]
["NOTA 17 –  IMPUESTOS A PAGAR"]
["Cifras expresadas en guaraníes"]
[]
["Impuestos a pagar","2020-06-30","2019-12-31"]
["Impuesto a la renta a pagar",10908671085,4165070386]
["Otros impuestos a pagar","-","-"]
["(Indicar otros impuestos)","-","-"]
["Total",{"$f":"SUM($B$9:B11)","v":10908671085},{"$f":"SUM($C$9:C11)","v":4165070386}]

{"sheet":"Nota 18","index":22,"n_rows":13,"n_cols":4,"rows_kept":13,"cut":false,"hidden":false,"merged":[[3,0,3,3],[6,0,7,0],[1,0,1,3]]}
[{"$f":"Indice!C1","v":"FRIGORIFICO CONCEPCION S.A."},null,null,"BG"]
["NO APLICABLE "]
[]
["NOTA 18 -  PROVISIONES"]
["Cifras expresadas en guaraníes "]
[]
["Provisiones","2020-06-30","2019-12-31"]
[]
["Alquileres a Pagar","-","-"]
["Servicios Basicos a Pagar","-","-"]
["Honorarios Profesionales a Pagar","-","-"]
["(Indicar cuentas)"]
["Total",{"$f":"SUM($B$9:B12)","v":0},{"$f":"SUM($C$9:C12)","v":0}]

{"sheet":"Nota 19","index":23,"n_rows":14,"n_cols":7,"rows_kept":14,"cut":false,"hidden":false,"merged":[[3,0,3,1]]}
[{"$f":"Indice!C1","v":"FRIGORIFICO CONCEPCION S.A."},null,null,"BG"]
[]
["NOTA 19 – OTROS PASIVOS CORRIENTES y NO CORRIENTES"]
["Cifras expresadas en guaraníes "]
[]
["Corrientes","2020-06-30","2019-12-31",null,"No Corrientes","2020-06-30","2019-12-31"]
["Retencion de IVA a pagar",2564659012,2405165021.27,null,"Retencion de IVA a pagar","-","-"]
["Retencion Impuesto a la renta a Pagar",3918352,"-",null,"Retencion Impuesto a la renta a Pagar","-","-"]
["Impuestos diferidos","-","-",null,"Impuestos diferidos",10003822688,10003822688]
["Otros ingresos diferidos (detallar cuenta)","-","-",null,"Otros ingresos diferidos","-","-"]
["Otros Pasivos con Entidades relacionadas ",716178806,1123430940,null,"Otros Pasivos con Entidades relacionadas ","-","-"]
["Previsiones para contingencias/Indemnizaciones y despidos",5797081173,5797081173,null,"Previsiones para contingencias/Indemnizaciones y despidos","-","-"]
["Otros pasivos",15798636882,59269497,null,"(nuevas cuentas a incluir)"]
["Total ",{"$f":"SUM(B7:B13)","v":24880474225},{"$f":"SUM(C7:C13)","v":9384946631.2700005},null,"Total ",{"$f":"SUM(F8:F13)","v":10003822688},{"$f":"SUM(G8:G13)","v":10003822688}]

{"sheet":"Nota 20","index":24,"n_rows":11,"n_cols":4,"rows_kept":11,"cut":false,"hidden":false,"merged":[[3,0,3,3]]}
[{"$f":"Indice!C1","v":"FRIGORIFICO CONCEPCION S.A."},null,null,"BG"]
[]
[]
["NOTA 20 – CAPITAL INTEGRADO"]
[]
["Fecha","2020-06-30","2019-12-31"]
["Monto Capital Social",386400000000,386400000000]
["Monto Capital Integrado",{"$f":"+B7","v":386400000000},{"$f":"+C7","v":386400000000}]
["Cantidad de Acciones",3864,3864]
["Valor Nominal de Acciones",{"$f":"B8/B9","v":100000000},{"$f":"C8/C9","v":100000000}]
["Total",{"$f":"+B8","v":386400000000},{"$f":"+C8","v":386400000000}]

{"sheet":" Nota 21","index":25,"n_rows":29,"n_cols":6,"rows_kept":29,"cut":false,"hidden":false,"merged":[[3,0,3,5]]}
[{"$f":"Indice!C1","v":"FRIGORIFICO CONCEPCION S.A."},null,null,null,null,"BG"]
[]
[]
["NOTA 21 – RESERVAS"]
["Cifras expresadas en guaraníes"]
[]
[null,"2020-06-30","2019-12-31"]
["a  Reserva de revalúo",61543828060,61543828060]
[]
[]
[]
[]
["b Reserva legal",24610112891,24610112891]
[]
[]
[]
["c Reservas estatutarias",0,0]
[]
[]
[]
["d Reservas facultativas",{"$f":"+SUM($B$22:B27)","v":0},{"$f":"+SUM($C$22:C27)","v":0}]
["d.1. (nuevas cuentas a incluir)"]
["d.2. (nuevas cuentas a incluir)"]
[]
[]
[]
[]
[]
["e Reservas especiales ",90034404188,90034404188]

{"sheet":"Nota 22","index":26,"n_rows":9,"n_cols":6,"rows_kept":9,"cut":false,"hidden":false,"merged":[]}
[{"$f":"Indice!C1","v":"FRIGORIFICO CONCEPCION S.A."},null,null,null,null,"BG"]
[]
[]
[]
["NOTA 21 –  DIFERENCIA TRANSITORIA POR CONVERSION"]
["Cifras expresadas en guaraníes "]
[]
[null,{"$f":"IFERROR(IF(Indice!B6=\"\",\"2XX2\",YEAR(Indice!B6)),\"2XX2\")","v":2020},{"$f":"+IFERROR(YEAR(Indice!B6-365),\"2XX1\")","v":2019}]
["Diferencia transitoria por conversión","-","-"]

{"sheet":"Nota 23","index":27,"n_rows":10,"n_cols":6,"rows_kept":10,"cut":false,"hidden":false,"merged":[]}
[{"$f":"Indice!C1","v":"FRIGORIFICO CONCEPCION S.A."},null,null,null,null,"BG"]
[]
[]
["NOTA 23 –  RESULTADOS ACUMULADOS"]
["Cifras expresadas en guaraníes "]
[]
[null,"2020-06-30","2019-12-31"]
["Resultado de ejercicios anteriores",69594754634,48458148]
["Resultado del ejercicio ",98178039763,69546296486]
["Total",{"$f":"SUM($B$8:B9)","v":167772794397},{"$f":"SUM($C$8:C9)","v":69594754634}]

{"sheet":"Nota 24","index":28,"n_rows":8,"n_cols":6,"rows_kept":8,"cut":false,"hidden":false,"merged":[]}
[{"$f":"Indice!C1","v":"FRIGORIFICO CONCEPCION S.A."},null,null,null,null,"BG"]
[]
[]
["NOTA 24 –  INTERES MINORITARIO"]
["Cifras expresadas en guaraníes"]
[]
[null,{"$f":"IFERROR(IF(Indice!B6=\"\",\"2XX2\",YEAR(Indice!B6)),\"2XX2\")","v":2020},{"$f":"+IFERROR(YEAR(Indice!B6-365),\"2XX1\")","v":2019}]
["Interes Minoritario","-","-"]

{"sheet":"Nota 25","index":29,"n_rows":11,"n_cols":5,"rows_kept":11,"cut":false,"hidden":false,"merged":[]}
[{"$f":"Indice!C1","v":"FRIGORIFICO CONCEPCION S.A."},null,null,null,"ER"]
[]
[]
[]
["NOTA 25 –  VENTAS"]
["Cifras expresadas en guaraníes "]
[null,"2020-06-30","2019-06-30"]
["Ventas"]
["Local",134259390119,135208050817]
["Exterior",1159333746446,544135701604]
["Total",{"$f":"SUM($B$9:B10)","v":1293593136565},{"$f":"SUM($C$9:C10)","v":679343752421}]

{"sheet":"Nota 26","index":30,"n_rows":14,"n_cols":5,"rows_kept":14,"cut":false,"hidden":false,"merged":[[4,0,4,5]]}
[{"$f":"Indice!C1","v":"FRIGORIFICO CONCEPCION S.A."},null,null,null,"ER"]
[]
[]
[]
["NOTA 26 - COSTO DE VENTAS"]
["Cifras expresadas en guaraníes "]
[]
["Costo de ventas","2020-06-30","2019-06-30"]
[]
["Existencia inicial del inventario",374363765644,373757947031]
["+ Compras de producción",913203405799,347672141292]
["+ Costo de Bienes de Cambio",188176212993,186873557758]
["- Existencia final de inventario",-403616941383,-313949444083]
["Total costo de ventas",{"$f":"SUM($B$9:B13)","v":1072126443053},{"$f":"SUM($C$9:C13)","v":594354201998}]

{"sheet":"Nota 27","index":31,"n_rows":36,"n_cols":7,"rows_kept":36,"cut":false,"hidden":false,"merged":[[5,0,5,7],[9,0,10,0]]}
[{"$f":"Indice!C1","v":"FRIGORIFICO CONCEPCION S.A."},null,null,null,null,null,"ER"]
[]
[]
[]
["NOTA 27 - GASTOS"]
[]
["El rubro está compuesto de la siguiente forma: "]
[]
["Cifras expresadas en guaraníes "]
[null,null,"2020-06-30",null,null,"2019-06-30"]
[null,"Gastos de Ventas","Gastos Administrativos","Total","Gastos de Ventas","Gastos Administrativos","Total"]
["Movilidad y viáticos",0,0,{"$f":"+C12+B12","v":0},0,0,{"$f":"+F12+E12","v":0}]
["Gastos de alquiler",0,0,{"$f":"+C13+B13","v":0},0,0,{"$f":"+F13+E13","v":0}]
["Computación y redes",0,0,{"$f":"+C14+B14","v":0},0,0,{"$f":"+F14+E14","v":0}]
["Gastos por servicios",0,0,0,0,0,0]
["Honorarios profesionales y asesoramiento",0,3098902787,3098902787,0,0,0]
["Investigación de mercado",0,0,0,0,null,0]
["Impuestos y tasas",0,513874853,513874853,0,394805786,394805786]
["Gastos de reparación y mantenimiento",568071690,0,568071690,0,0,0]
["Gastos del personal y capacitación",0,0,0,0,0,0]
["Seguros pagados",0,1398765273,1398765273,0,968749699,968749699]
["Otros gastos de operación",10460498614,0,10460498614,0,6963270281,6963270281]
["Remuneraciones de administradores, directores, síndicos y consejo de vigilancia",0,1808813998,1808813998,0,1780330238,1780330238]
["Sueldos y Jornales",0,4975739083,4975739083,0,8557159431,8557159431]
["Contribuciones Sociales",0,201455951,201455951,0,181896933,181896933]
["Regalías y Honorarios por servicios técnicos",0,0,0,0,0,0]
["Gastos de Publicidad y Propaganda",0,1069146085,1069146085,0,1167202364,1167202364]
["Intereses, multas y recargos impositivos",0,0,0,0,null,0]
["Intereses a bancos e instituciones financieras",0,0,0,0,0,0]
["Depreciación bienes de uso",0,7804339680,7804339680,0,9200206468,9200206468]
["Amortización activos intangibles",0,0,0,0,0,0]
["Comisiones ",2526724539,0,2526724539,2553368510,0,2553368510]
["Gastos generales ",0,5513801742,5513801742,4017639933,0,4017639933]
["Honorarios fiduciarios ",0,1094798771,1094798771,0,0,0]
["Gastos de exportación - importación ",16107330563,0,16107330563,9410160948,0,9410160948]
["Total",{"$f":"SUM(B12:B35)","v":29662625406},{"$f":"+SUM($C$12:C34)","v":27479638223},{"$f":"+SUM($D$12:D35)","v":57142263629},{"$f":"SUM(E12:E35)","v":15981169391},{"$f":"+SUM($F$12:F35)","v":29213621200},{"$f":"+SUM($G$12:G35)","v":45194790591}]

{"sheet":"Nota 28","index":32,"n_rows":10,"n_cols":7,"rows_kept":10,"cut":false,"hidden":false,"merged":[[5,1,5,2],[6,1,6,2],[6,5,6,6],[3,0,3,6]]}
[{"$f":"Indice!C1","v":"FRIGORIFICO CONCEPCION S.A."},null,null,null,"ER"]
[]
[]
["Nota 28 - Otros Ingresos y gastos operativos"]
[]
[]
[null,"Cifras expresadas en guaraníes ",null,null,null,"Cifras expresadas en guaraníes "]
["Otros ingresos","2020-06-30","2019-06-30",null,"Otros gastos","2020-06-30","2019-06-30"]
["Otros ingresos",9053000699,1721966417,null,"Otros gastos operativos ",3266288321,4278797936]
["Total",{"$f":"SUM($B$9:B9)","v":9053000699},5165899251,null,"Total",{"$f":"SUM($F$9:F9)","v":3266288321},{"$f":"SUM($G$9:G9)","v":4278797936}]

{"sheet":"Nota 29","index":33,"n_rows":13,"n_cols":7,"rows_kept":13,"cut":false,"hidden":false,"merged":[]}
[{"$f":"Indice!C1","v":"FRIGORIFICO CONCEPCION S.A."},null,null,null,"ER"]
[]
[]
[]
["NOTA 29 - INGRESOS Y GASTOS FINANCIEROS NETOS"]
["Cifras expresadas en guaraníes"]
[]
["Ingresos Financieros netos","2020-06-30","2019-06-30",null,"Gastos Financieros netos","2020-06-30","2019-06-30"]
[null,null,null,null,"Diferencia de cambio ",21745293493,7554651696]
[null,null,null,null,"Intereses pagados a Bancos ",8891003528,21860567318]
[null,null,null,null,"Intereses pagados por Bonos emitidos ",2255376147,7157651854]
[null,null,null,null,"Intereses pagados por Bonos Internacional ",28132758245,"-"]
["Total ingresos financieros",{"$f":"SUM($B9:B9)","v":0},{"$f":"SUM($C9:C9)","v":0},null,"Total gastos financieros",{"$f":"SUM($F9:F12)","v":61024431413},{"$f":"SUM($G9:G12)","v":36572870868}]

{"sheet":"Nota 30","index":34,"n_rows":11,"n_cols":5,"rows_kept":11,"cut":false,"hidden":false,"merged":[[6,1,6,2],[2,0,2,4]]}
[{"$f":"Indice!C1","v":"FRIGORIFICO CONCEPCION S.A."},null,null,null,"ER"]
[]
["NO APLICABLE "]
[]
["Nota 34 - Resultado de inversiones en asociadas"]
["Cifras expresadas en guaraníes "]
[]
[]
["Resultado de inversiones en asociadas","2020-06-30","2019-06-30"]
["(Detallar cuenta)"]
["Total",{"$f":"SUM($B10:B10)","v":0},{"$f":"SUM($C10:C10)","v":0}]

{"sheet":"Nota 31","index":35,"n_rows":10,"n_cols":5,"rows_kept":10,"cut":false,"hidden":false,"merged":[[4,0,4,1],[5,1,5,2]]}
[{"$f":"Indice!C1","v":"FRIGORIFICO CONCEPCION S.A."},null,null,null,"ER"]
[]
[]
["Nota 31 - Resultado participación minoritaria"]
["Cifras expresadas en guaraníes"]
[]
[]
["Resultado participación minoritaria","2020-06-30","2019-06-30"]
["(Detallar cuenta)"]
["Total",{"$f":"SUM($B9:B9)","v":0},{"$f":"SUM($C9:C9)","v":0}]

{"sheet":"Nota 32","index":36,"n_rows":9,"n_cols":5,"rows_kept":9,"cut":false,"hidden":false,"merged":[[5,1,5,2]]}
[{"$f":"Indice!C1","v":"FRIGORIFICO CONCEPCION S.A."},null,null,null,"ER"]
[]
[]
["Nota 32 - IMPUESTO A LA RENTA"]
["Cifras expresadas en guaraníes"]
[]
[null,"2020-06-30","2019-06-30"]
["Impuesto a la renta",10908671085,1275961664]
["Total",{"$f":"SUM($B8:B8)","v":10908671085},{"$f":"SUM($C8:C8)","v":1275961664}]

{"sheet":"Nota 33","index":37,"n_rows":11,"n_cols":5,"rows_kept":11,"cut":false,"hidden":false,"merged":[[2,0,2,4]]}
[{"$f":"Indice!C1","v":"FRIGORIFICO CONCEPCION S.A."},null,null,null,"ER"]
[]
["NO APLICABLE "]
[]
["Nota 33 - Resultado extraordinario neto de impuesto a la renta"]
["Cifras expresadas en guaraníes"]
[]
[null,"2020-06-30","2019-06-30"]
["Conceptos"]
["(Detallar)"]
["Total",{"$f":"SUM($B9:B10)","v":0},{"$f":"SUM($C9:C10)","v":0}]

{"sheet":"Nota 34","index":38,"n_rows":13,"n_cols":5,"rows_kept":13,"cut":false,"hidden":false,"merged":[[5,0,5,1],[2,0,2,4]]}
[{"$f":"Indice!C1","v":"FRIGORIFICO CONCEPCION S.A."},null,null,null,"ER"]
[]
["NO APLICABLE"]
[]
["Nota 34 - Resultado sobre actividades discontinuadas neto de impuesto a la renta"]
["Cifras expresadas en guaraníes"]
[]
["Resultado sobre actividades discontinuadas neto de impuesto a la renta","2020-06-30","2019-06-30"]
[]
["(nueva cuenta a incluir)"]
["Subtotal"]
["- Impuesto a la renta"]
["Total",{"$f":"SUM($B9:B12)","v":0},{"$f":"SUM($C9:C12)","v":0}]

{"sheet":"Nota 35","index":39,"n_rows":10,"n_cols":5,"rows_kept":10,"cut":false,"hidden":false,"merged":[]}
[{"$f":"Indice!C1","v":"FRIGORIFICO CONCEPCION S.A."},null,null,null,"ER"]
[]
[]
["NOTA 35- UTILIDAD  NETA DEL AÑO "]
["Cifras expresadas en guaraníes"]
[]
[null,"2020-06-30","2019-06-30"]
["Cantidad de Acciones Ordinarias en Circulación",0,0]
["Utilidad Neta",{"$f":"ER!C31","v":98178039763},{"$f":"ER!D31","v":2833028615}]
["Utilidad Neta por Acción Ordinaria",{"$f":"IFERROR(B9/B8,0)","v":0},{"$f":"IFERROR(C9/C8,0)","v":0}]

{"sheet":"Nota 36","index":40,"n_rows":24,"n_cols":5,"rows_kept":24,"cut":false,"hidden":false,"merged":[[5,0,5,8],[3,0,3,4],[10,3,12,3],[10,4,12,4]]}
[{"$f":"Indice!C1","v":"FRIGORIFICO CONCEPCION S.A."},null,null,null,"Indice"]
[]
[]
["NOTA 36 - ACTIVOS GRAVADOS"]
[]
["Los siguientes bienes de propiedad de la Sociedad han sido hipotecados y prendados en garantía de obligaciones financieras."]
[]
["Al 30 de junio de 2020"]
[]
["Tipo de Activo","Datos  del activo gravado","Tipo de garantía","Importe (Guaraníes)","A favor de"]
["Planta industrial Frigorífica (Concepcion)","Inmuebles (Terrenos y edificios), Maquinarias, muebles y equipos)","Fiduciaria",235220040246,"Wilmington Trust National Association"]
["Industria de Curtiembre (Concepcion","Inmuebles (Terrenos y edificios), Maquinarias, muebles y equipos)","Fiduciaria"]
["Planta Industrial Ciclo 2 (Trinidad)","Inmuebles (Terrenos y edificios), Maquinarias, muebles y equipos)","Fiduciaria"]
["Industria Encarnacion","Inmuebles (Terrenos y edificios), Maquinarias, muebles y equipos)","Hipotecaria",6292130338,"Banco Itapúa  S.A.E.C.A."]
[]
[]
["Al 30 de junio de 2019"]
[]
["Tipo de Activo","Datos  del activo gravado","Tipo de garantía","Importe (Guaraníes)","A favor de"]
["Planta industrial Frigorífica (Concepcion)","Inmuebles (Terrenos y edificios), Maquinarias, muebles y equipos)","Fiduciaria",163330015802,"Sudameris Bank S.A."]
["Industria de Curtiembre (Concepcion","Inmuebles (Terrenos y edificios), Maquinarias, muebles y equipos)","Fiduciaria",35420869553,"Banco Continental S.A.E.C.A."]
["Industria Encarnacion","Inmuebles (Terrenos y edificios), Maquinarias, muebles y equipos)","Hipotecaria",6454425563,"Banco Itapúa  S.A.E.C.A."]
[]
["..//.."]

{"sheet":"Nota 37","index":41,"n_rows":13,"n_cols":5,"rows_kept":13,"cut":false,"hidden":false,"merged":[[12,0,12,7],[5,0,5,8],[6,0,6,8],[2,0,2,7]]}
[{"$f":"Indice!C1","v":"FRIGORIFICO CONCEPCION S.A."},null,null,null,"Indice"]
[]
[]
[]
["NOTA 37 - CONTINGENCIAS Y COMPROMISOS "]
["(Esta nota debería incluir un breve detalle de contratos con terceros, vigente a la fecha de cierre del ejercicio, cuyo incumplimiento o cláusula específica podrían generar obligaciones contingentes para el cliente). "]
[{"$f":"IFERROR(\"Los principales contratos suscriptos por la Sociedad, vigentes al  \"&DAY(Indice!B6)&\" de \"&VLOOKUP(MONTH(Indice!B6),Indice!S:T,2,0)&\" de \"&YEAR(Indice!B6-1)&\" son:\",\"Los principales contratos suscriptos por la Sociedad, vigentes al … de …  20X2 son:\")","v":"Los principales contratos suscriptos por la Sociedad, vigentes al … de …  20X2 son:"}]
["a)"]
["b)"]
[]
[]
[]
["Al 30 de junio de 2020 no existen situaciones contingentes, ni reclamos que pudieran resultar en la generación de obligaciones para la Sociedad adicionales a las que se presentan en estos estados financieros."]

{"sheet":"Nota 38","index":42,"n_rows":12,"n_cols":4,"rows_kept":12,"cut":false,"hidden":false,"merged":[[11,0,11,6],[3,0,3,6],[8,0,8,6],[9,0,9,6]]}
[{"$f":"Indice!C1","v":"FRIGORIFICO CONCEPCION S.A."},null,null,"Índice"]
[]
[]
["NOTA 38 - IMPUESTO DIFERIDO"]
["Cifras expresadas en guaraníes "]
[]
[null,"2020-06-30","30/062019"]
["Impuestos diferidos ",10003826822688,10003826822688]
[]
["El impuesto diferido es calculado utilizando el método del estado de situación basado en el Balance General, determinado a partir de las diferencias temporarias entre los importes contables de activos y pasivos y los importes utilizados para fines fiscales. El importe de impuesto diferido calculado está basado en la forma esperada de realización o liquidación de los importes contables de activos y pasivos, utilizando la tasa de impuesto aprobada a la fecha de estados financieros."]
[]
["Un activo por impuesto diferido es reconocido hasta el importe que es probable que futuras ganancias imponibles estarán disponibles, contras la cuales el activo pueda ser utilizado."]

{"sheet":"Nota 39","index":43,"n_rows":7,"n_cols":5,"rows_kept":7,"cut":false,"hidden":false,"merged":[[6,0,6,8],[10,0,10,8]]}
[{"$f":"Indice!C1","v":"FRIGORIFICO CONCEPCION S.A."},null,null,null,"Indice"]
[]
[]
[]
["NOTA 39 - HECHOS POSTERIORES"]
[]
["Entre la fecha de cierre del ejercicio y la fecha de preparación de estos estados financieros, no han ocurrido hechos significativos de carácter financiero o de otra índole que afecten la situación patrimonial o financiera o los resultados de la Sociedad al 30 de junio de 2020.-"]

{"sheet":"Nota 40","index":44,"n_rows":32,"n_cols":3,"rows_kept":32,"cut":false,"hidden":false,"merged":[[21,0,21,5]]}
[{"$f":"Indice!C1","v":"FRIGORIFICO CONCEPCION S.A."},null,"Indice"]
[]
[]
[]
["NOTA 40 - SALDOS Y TRANSACCIONES CON PARTES RELACIONADAS"]
["Cifras expresadas en guaraníes "]
[]
[null,"2020-06-30","2019-06-30"]
["ACTIVO"]
["Inversiones temporales","-","-"]
["Cuentas a cobrar comerciales",7374186132,4481840553]
["Otros créditos",96092023635,43654376408]
["Total activo",{"$f":"SUM(B11:B12)","v":103466209767},{"$f":"SUM(C11:C12)","v":48136216961}]
["PASIVO"]
["Cuentas por pagar comerciales",4385641421,3003956082]
["Préstamos a corto plazo","-","-"]
["Provisiones","-","-"]
["Préstamos a largo plazo","-","-"]
["Otros pasivos",716178806,9687210543]
["Total pasivo",{"$f":"SUM(B15:B19)","v":5101820227},{"$f":"SUM(C15:C19)","v":12691166625}]
[]
[]
[]
[null,"2020-03-31","2019-12-31"]
["Costo de ventas"]
["Compras a …."]
[]
["Gastos administrativos"]
["Honorarios por servicios"]
["Otros "]
["Gastos financieros "]
["Intereses pagados por préstamos"]

{"sheet":"Base de Monedas","index":45,"n_rows":179,"n_cols":3,"rows_kept":179,"cut":false,"hidden":false,"merged":[]}
["PYG","Guaraní","Índice"]
["USD","Dólar estadounidense"]
["EUR","Euro"]
["AED","Dírham de los Emiratos Árabes Unidos"]
["AFN","Afgani"]
["ALL","Lek"]
["AMD","Dram armenio"]
["ANG","Florín antillano neerlandés"]
["AOA","Kwanza"]
["ARS","Peso argentino"]
["AUD","Dólar australiano"]
["AWG","Florín arubeño"]
["AZN","Manat azerbaiyano"]
["BAM","Marco convertible"]
["BBD","Dólar de Barbados"]
["BDT","Taka"]
["BGN","Lev búlgaro"]
["BHD","Dinar bareiní"]
["BIF","Franco de Burundi"]
["BMD","Dólar bermudeño"]
["BND","Dólar de Brunéi"]
["BOB","Boliviano"]
["BOV","MVDOL"]
["BRL","Real brasileño"]
["BSD","Dólar bahameño"]
["BTN","Ngultrum"]
["BWP","Pula"]
["BYN","Rublo bielorruso"]
["BZD","Dólar beliceño"]
["CAD","Dólar canadiense"]
["CDF","Franco congoleño"]
["CHE","Euro WIR"]
["CHF","Franco suizo"]
["CHW","Franco WIR"]
["CLF","Unidad de fomento"]
["CLP","Peso chileno"]
["CNY","Yuan chino"]
["COP","Peso colombiano"]
["COU","Unidad de valor real"]
["CRC","Colón costarricense"]
["CUC","Peso convertible"]
["CUP","Peso cubano"]
["CVE","Escudo caboverdiano"]
["CZK","Corona checa"]
["DJF","Franco yibutiano"]
["DKK","Corona danesa"]
["DOP","Peso dominicano"]
["DZD","Dinar argelino"]
["EGP","Libra egipcia"]
["ERN","Nakfa"]
["ETB","Birr etíope"]
["FJD","Dólar fiyiano"]
["FKP","Libra malvinense"]
["GBP","Libra esterlina"]
["GEL","Lari"]
["GHS","Cedi ghanés"]
["GIP","Libra de Gibraltar"]
["GMD","Dalasi"]
["GNF","Franco guineano"]
["GTQ","Quetzal"]
["GYD","Dólar guyanés"]
["HKD","Dólar de Hong Kong"]
["HNL","Lempira"]
["HRK","Kuna"]
["HTG","Gourde"]
["HUF","Forinto"]
["IDR","Rupia indonesia"]
["ILS","Nuevo shéquel israelí"]
["INR","Rupia india"]
["IQD","Dinar iraquí"]
["IRR","Rial iraní"]
["ISK","Corona islandesa"]
["JMD","Dólar jamaiquino"]
["JOD","Dinar jordano"]
["JPY","Yen"]
["KES","Chelín keniano"]
["KGS","Som"]
["KHR","Riel"]
["KMF","Franco comorense"]
["KPW","Won norcoreano"]
["KRW","Won"]
["KWD","Dinar kuwaití"]
["KYD","Dólar de las Islas Caimán"]
["KZT","Tenge"]
["LAK","Kip"]
["LBP","Libra libanesa"]
["LKR","Rupia de Sri Lanka"]
["LRD","Dólar liberiano"]
["LSL","Loti"]
["LYD","Dinar libio"]
["MAD","Dírham marroquí"]
["MDL","Leu moldavo"]
["MGA","Ariary malgache"]
["MKD","Denar"]
["MMK","Kyat"]
["MNT","Tugrik"]
["MOP","Pataca"]
["MRU","Uguiya"]
["MUR","Rupia de Mauricio"]
["MVR","Rufiyaa"]
["MWK","Kwacha"]
["MXN","Peso mexicano"]
["MXV","Unidad de Inversión (UDI) mexicana"]
["MYR","Ringgit malayo"]
["MZN","Metical mozambiqueño"]
["NAD","Dólar namibio"]
["NGN","Naira"]
["NIO","Córdoba"]
["NOK","Corona noruega"]
["NPR","Rupia nepalí"]
["NZD","Dólar neozelandés"]
["OMR","Rial omaní"]
["PAB","Balboa"]
["PEN","Sol"]
["PGK","Kina"]
["PHP","Peso filipino"]
["PKR","Rupia pakistaní"]
["PLN","Złoty"]
["QAR","Riyal qatarí"]
["RON","Leu rumano"]
["RSD","Dinar serbio"]
["RUB","Rublo ruso"]
["RWF","Franco ruandés"]
["SAR","Riyal saudí"]
["SBD","Dólar de las Islas Salomón"]
["SCR","Rupia seychelense"]
["SDG","Dinar sudanés"]
["SEK","Corona sueca"]
["SGD","Dólar de Singapur"]
["SHP","Libra de Santa Elena"]
["SLL","Leone"]
["SOS","Chelín somalí"]
["SRD","Dólar surinamés"]
["SSP","Libra sursudanesa"]
["STN","Dobra"]
["SVC","Colon Salvadoreño"]
["SYP","Libra siria"]
["SZL","Lilangeni"]
["THB","Baht"]
["TJS","Somoni tayiko"]
["TMT","Manat turcomano"]
["TND","Dinar tunecino"]
["TOP","Paʻanga"]
["TRY","Lira turca"]
["TTD","Dólar de Trinidad y Tobago"]
["TWD","Nuevo dólar taiwanés"]
["TZS","Chelín tanzano"]
["UAH","Grivna"]
["UGX","Chelín ugandés"]
["USN","Dólar estadounidense (Siguiente día)"]
["UYI","Peso en Unidades Indexadas (Uruguay)"]
["UYU","Peso uruguayo"]
["UYW","Unidad Previsional"]
["UZS","Som uzbeko"]
["VES7​","Bolívar soberano"]
["VND","Dong vietnamita"]
["VUV","Vatu"]
["WST","Tala"]
["XAF","Franco CFA de África Central"]
["XAG","Plata (una onza troy)"]
["XAU","Oro (una onza troy)"]
["XBA","Unidad compuesta europea (EURCO) (Unidad del mercados de bonos)"]
["XBB","Unidad Monetaria europea (E.M.U.-6) (Unidad del mercado de bonos)"]
["XBC","Unidad europea de cuenta 9 (E.U.A.-9) (Unidad del mercado de bonos)"]
["XBD","Unidad europea de cuenta 17 (E.U.A.-17) (Unidad del mercado de bonos)"]
["XCD","Dólar del Caribe Oriental"]
["XDR","Derechos especiales de giro"]
["XOF","Franco CFA de África Occidental"]
["XPD","Paladio (una onza troy)"]
["XPF","Franco CFP"]
["XPT","Platino (una onza troy)"]
["XSU","SUCRE"]
["XTS","Reservado para pruebas"]
["XUA","Unidad de cuenta BAD"]
["XXX","Sin divisa"]
["YER","Rial yemení"]
["ZAR","Rand"]
["ZMW","Kwacha zambiano"]
["ZWL","Dólar zimbabuense"]